{"text_format":"1","workbook":"xlsx","n_sheets":24,"sheets":["Plot Spp summy","Plot Spp summy (2)","(T1) 21.3.12","(T2) 28.3.12","(T7) 4.4.12","(T3) 11.4.12","(DRA) 18.4.12","(N1) 2.5.12","(BB1) 9.5.12","(TW8) 16.5.12","(TW9) 16.5.12","(TW10) 23.5.12","(T11) 30.5.12","(T4) 12.9.12","(M1) 19.9.12","(M2) 19.9.12","(BQ1) 26.9.12","(RUN1) 26.9.12","(MERRI!) 3.10.12","(Cadgee1 (Liam) 11.8.2012)","(Cadgee2) 5.9.2012","(Cadgee3) 5.9.2012","(EL1) 24.10.2012","(EL2) 24.10.2012"],"not_rendered":{"charts":0,"images":0,"macros":1,"external_links":0,"defined_names":0,"comments":0,"pivot_tables":0},"unopened":[],"bounds":{"document_bytes":16777216,"sheet_cells":100000,"rows_first":2000,"rows_last":500,"rows_between":2000,"halvings":0,"cell_chars":16384,"cell_head_chars":4096},"cells_cut":0,"cells_raw":0,"read":"whole","date_system":"1900"}

{"sheet":"Plot Spp summy","index":0,"n_rows":23,"n_cols":64,"rows_kept":23,"cut":false,"hidden":false,"merged":[]}
[null,null,null,1,2,3,4,5,6,7,8,9,10,11,12,13,14,15,16,17,18,19,20,21,22,23,24,25,26,27,28,29,30]
[null,"Easting","Northing",null,null,null,null,null,null,null,null,null,null,null,null,null,null,null,null,null,null,null,null,null,null,null,null,null,null,null,null,null,null,null,"Elon","Esie","angflo","Acacia falciformis","Emue","Eglo","Eagg","Ebos","Eela","Eglob","Ecyp","Acacia sp","Acacia","Excup","Epip","Blueberry Ash","Epan","Cedar","Ebau","Acas","Etri","Eang","Cmac","Eteri","Evim","Eeug","Cgum","Amea","Alit"]
["T1",757487,5988490,"Elon","Esie","Elon","Elon","Elon","Excup","Elon","Emue","Ecyp","Ecyp","angflo","Eela","Elon","Acacia falciformis","Esie","Acacia falciformis","Emue","Emue","Elon","Emue","Ecyp","Esie","angflo","Acacia falciformis","Emue","Eglo","Emue","angflo","Elon","Elon",null,{"$f":"COUNTIF($D3:$AG3,AI$2)","v":9},{"$f":"COUNTIF($D3:$AG3,AJ$2)","v":3},3,3,6,1,0,0,1,0,3,0,0,1,0,0,0,0,0,0,0,0,{"$f":"COUNTIF($D3:$AG3,BE$2)","v":0},{"$f":"COUNTIF($D3:$AG3,BF$2)","v":0},{"$f":"COUNTIF($D3:$AG3,BG$2)","v":0},0,{"$f":"COUNTIF($D3:$AG3,BI$2)","v":0},{"$f":"COUNTIF($D3:$AG3,BJ$2)","v":0},{"$f":"COUNTIF($D3:$AG3,BK$2)","v":0},{"$f":"SUM(AI3:BK3)","v":30}]
["T2",755575,5988330,"Eglo","Eagg","angflo","Eglo","Ebos","Ebos","Eglo","Ebos","Eglo","Eglo","Eglo","angflo","Ebos","Eglo","Eglo","Eglo","angflo","Eglo","angflo","Eglo","Eglo","Ebos","Eglo","Eglo","angflo","Emue","Eglo","Eglo","Eglo","angflo",null,{"$f":"COUNTIF($D4:$AG4,AI$2)","v":0},0,6,0,1,17,1,5,0,0,0,0,0,0,0,0,0,0,0,0,0,0,0,0,0,0,0,0,0,{"$f":"SUM(AI4:BK4)","v":30}]
["T7",757650,5989337,"Eela","Ecyp","Ecyp","Eela","angflo","Eela","angflo","angflo","Eela","Eela","Eela","Eela","Eela","Eela","Eela","Eela","Eela","Eela","Eela","Acas","Ebos","angflo","Eela","angflo","Eela","angflo","Ebos","Eela","Eela","Ecyp",null,0,0,6,{"$f":"COUNTIF($D5:$AG5,AL$2)","v":0},0,0,0,2,18,0,3,0,0,0,0,0,0,0,0,{"$f":"COUNTIF($D5:$AG5,BB$2)","v":1},0,0,0,0,0,0,0,0,0,30]
["T3",754786,5987544,"Ebos","Elon","Elon","Elon","Ebos","Elon","Emue","Elon","Acas","Elon","Eagg","Elon","Ebos","Eagg","Eagg","Ebau","Eagg","Acas","Ebos","Ebos","Ebos","Eagg","Eagg","Acas","Acas","Eagg","Eagg","Acas","Eagg","Acas",null,7,0,0,0,1,0,9,6,0,0,0,0,0,0,0,0,{"$f":"COUNTIF($D6:$AG6,AY$2)","v":0},0,1,6,0,0,0,0,0,0,0,0,0,30]
["DRA",758997,5987005,"Ebos","Ebos","Emue","Emue","Acacia sp","Ebos","Ebos","Emue","Ebos","Acacia sp","Epan","Ebos","Ebos","Ebos","Acacia sp","Acacia sp","Emue","Acacia sp","Acacia sp","Acacia sp","Emue","Emue","Emue","Ebos","Ebos","Elon","Ebos","Elon","Ebos","Emue",null,2,0,0,0,8,0,0,12,0,0,0,7,0,0,0,0,1,0,0,0,0,0,0,0,0,0,0,0,0,30]
["N1",760204,6003686,"Eagg","Eagg","Emue","Emue","Emue","Emue","Emue","Emue","Emue","Emue","Emue","Emue","Emue","Emue","Emue","Emue","Eagg","Emue","Eagg","Emue","Emue","Emue","Emue","Emue","Emue","Emue","Emue","Emue","Emue","Emue",null,0,0,0,0,26,0,4,0,0,0,0,0,0,0,0,0,0,0,0,0,0,0,0,0,0,0,0,0,0,30]
["BB1",753565,6002182,"Ecyp","Emue","Ecyp","Ecyp","Emue","Epip","Blueberry Ash","Ecyp","Blueberry Ash","Ecyp","Blueberry Ash","Emue","Ecyp","Cedar","Ecyp","Acacia","Acacia","Emue","Ecyp","Ecyp","Epip","Ecyp","Emue","Ecyp","Ecyp","Ecyp","Ecyp","Epip","Ecyp","Ecyp",null,0,0,0,0,5,0,0,0,0,0,16,0,2,0,3,3,0,1,0,0,0,0,0,0,0,0,0,0,0,30]
["TW8",759072,5983910,"Emue","Emue","Ebos","Ebos","angflo","Emue","Ebos","Ebos","Ebos","Emue","Ebos","Ebos","Emue","Ebos","Emue","Emue","Emue","Emue","Emue","Emue","Emue","Emue","Ebos","Emue","Ebos","Emue","Ebos","Ebos","Ebos","Emue",null,0,0,1,0,16,0,0,13,0,0,0,0,0,0,0,0,0,0,0,0,0,0,0,0,0,0,0,0,0,30]
["TW9",757138,5982403,"Esie","Esie","Esie","Esie","Esie","Esie","Esie","Esie","Esie","Esie","Esie","Esie","Ebos","Esie","Esie","Esie","Eagg","Eagg","Eagg","Eagg","Eagg","Eagg","Ebos","Ebos","Esie","Esie","Esie","Esie","Esie","Esie",null,0,21,0,0,0,0,6,3,0,0,0,0,0,0,0,0,0,0,0,0,0,0,0,0,0,0,0,0,0,30]
["TW10",756059,5984147,"Esie","Eagg","Eagg","Esie","Esie","Etri","Eagg","Eagg","Etri","Esie","Etri","Eagg","Esie","Esie","Esie","Etri","Esie","Etri","Esie","Eagg","Eagg","Eagg","Esie","Esie","Esie","Esie","Esie","Esie","Esie","Eagg",null,0,16,0,0,0,0,9,0,0,0,0,0,0,0,0,0,0,0,0,0,5,0,0,0,0,0,0,0,0,30]
["T11",755603,5986037,"Eglo","Eagg","Ecyp","Eglo","Eglo","Eglo","Ecyp","Ecyp","Etri","Etri","Eglo","Etri","Etri","Ecyp","Eglo","Ecyp","Acas","Esie","Etri","Esie","Esie","Ebos","Eglo","Etri","Eagg","Ecyp","Ebos","Ebos","Eagg","Ebos",null,0,3,0,0,0,7,3,4,0,0,6,0,0,0,0,0,0,0,0,1,6,0,0,0,0,0,0,0,0,30]
["T4",754488,5988410,"Esie","Eglo","Eang","Eang","Eang","Eang","Eglo","Eglo","Eglo","Eang","Eang","Eglo","Eang","Eglo","Esie","Eglo","Eglo","Eglo","Esie","Eang","Eglo","Eglo","Eang","Eglo","Esie","Eang","Eglo","Eglo","Esie","Eang",null,0,5,0,0,0,14,0,0,0,0,0,0,0,0,0,0,0,0,0,0,0,11,0,0,0,0,0,0,0,30]
["M1",232012,6012588,"Ebos","Etri","Ebos","Eglo","Ebos","Epan","Eglo","Ebos","Ebos","Ebos","Ebos","Emue","Ebos","Ebos","Eang","Eglo","Eglo","Eglo","Ebos","Eglo","Ebos","Ebos","Eglo","Ebos","Cmac","Eang","Eglo","Ebos","Ebos","Ebos",null,0,0,0,0,1,8,0,16,0,0,0,0,0,0,0,0,1,0,0,0,1,2,1,0,0,0,0,0,0,30]
["M2",233687,6015206,"Epan","Eeug","Ebos","Eglo","Ebos","Ebos","Ebos","Ebos","Ebos","Epan","Epan","Epan","Ebos","Epan","Epan","Epan","Epan","Epan","Epan","Epan","Eglo","Epan","Eglo","Epan","Ebos","Ebos","Eeug","Ebos","Ebos","Epan",null,0,0,0,0,0,3,0,11,0,0,0,0,0,0,0,0,14,0,0,0,0,0,0,0,0,2,0,0,0,30]
["BQ1",234753,6037574,"Cmac","Etri","Etri","Etri","Cmac","Cmac","Eglo","Cmac","Cmac","Cmac","Etri","Eglo","Eglo","Cmac","Eglo","Cmac","Eglo","Cmac","Eglo","Cmac","Cmac","Cmac","Etri","Eglo","Cmac","Cmac","Cmac","Cmac","Cmac","Cmac",null,0,0,0,0,0,7,0,0,0,0,0,0,0,0,0,0,0,0,0,0,5,0,18,0,0,0,0,0,0,30]
["RUN1",239638,6043023,"Eteri","Eteri","Eteri","Eteri","Eteri","Ebos","Cmac","Ebos","Eteri","Eteri","Eteri","Eteri","Eteri","Eteri","Angflo","Angflo","Eteri","Ebos","Eteri","Eteri","Eteri","Ebos","Ebos","Eteri","Angflo","Angflo","Eteri","Angflo","Eteri","Eteri",null,0,0,5,0,0,0,0,5,0,0,0,0,0,0,0,0,0,0,0,0,0,0,1,19,0,0,0,0,0,30]
["MERRI1",765648,6038292,"Angflo","Evim","Angflo","Angflo","Eglo","Eglo","Eglo","Evim","Angflo","Evim","Evim","Eglo","Evim","Evim","Eglo","Angflo","Evim","Eglo","Eglo","Eglo","Eglo","Evim","Angflo","Angflo","Evim","Acas","Ecyp","Eglo","Angflo","Ecyp",null,0,0,8,0,0,10,0,0,0,0,2,0,0,0,0,0,0,0,0,1,0,0,0,0,9,0,0,0,0,30]
["EL1",248136,6061754,"Epip","Eglo","Eglo","Eglo","Eglo","Epip","Epip","Epip","Eglo","Epip","Epip","Eglo","Ecyp","Eglo","Epip","Epip","Epip","Epip","Eglo","Ecyp","Epip","Epip","Epip","Eglo","Cgum","Cgum","Cgum","Cgum","Ecyp","Eglo",null,0,0,0,0,0,10,0,0,0,0,3,0,0,0,13,0,0,0,0,0,0,0,0,0,0,0,4,0,0,30]
["EL2",248623,6061467,"Cgum","Cgum","Cgum","Cgum","Cgum","Cgum","Ecyp","Eglo","Cgum","Eglo","Cmac","Cgum","Eglo","Eglo","Eglo","Cgum","Eglo","Eglo","Cmac","Eglo","Eglo","Eglo","Eglo","Epip","Epip","Eglo","Cgum","Cgum","Epip","Cgum",null,0,0,0,0,0,12,0,0,0,0,1,0,0,{"$f":"COUNTIF($D21:$AG21,AV$2)","v":0},3,0,0,0,0,0,0,0,2,0,0,0,12,0,0,30]
["C2",762554,5996627,"angflo","Eela","Amea","Eela","Amea","Eela","Eela","Eela","Eela","Eela","Eela","Eela","Eela","Eela","angflo","Eela","angflo","Emue","Emue","Ebos","Ebos","Eela","Eela","Ebos","Eela","Eela","Eela","Eela","Ebos","Eela",null,{"$f":"COUNTIF($D22:$AG22,AI$2)","v":0},0,3,0,2,0,0,4,19,0,0,0,0,0,0,0,0,0,0,0,0,0,0,0,0,0,0,2,0,30]
["C3",762616,5996718,"angflo","Alit","angflo","angflo","Ebos","angflo","angflo","Ebos","Alit","angflo","Ebos","Eela","Ebos","angflo","Eela","angflo","Ebos","Eela","angflo","Eela","Eela","Eela","Eela","Eela","Eela","Eela","Eela","Cedar","Eela","angflo",null,0,0,10,0,0,0,0,5,12,0,0,0,0,0,0,0,0,1,0,0,0,0,0,0,0,0,0,0,2,30]

{"sheet":"Plot Spp summy (2)","index":1,"n_rows":23,"n_cols":83,"rows_kept":23,"cut":false,"hidden":false,"merged":[]}
[null,null,null,1,2,3,4,5,6,7,8,9,10,11,12,13,14,15,16,17,18,19,20,21,22,23,24,25,26,27,28,29,30]
[null,"Easting","Northing",null,null,null,null,null,null,null,null,null,null,null,null,null,null,null,null,null,null,null,null,null,null,null,null,null,null,null,null,null,null,null,"Elon","Esie","angflo","Acacia falciformis","Emue","Eglo","Eagg","Ebos","Eela","Eglob","Ecyp","Acacia sp","Acacia","Excup","Epip","Blueberry Ash","Epan","Cedar","Ebau","Acas","Etri","Eang","Cmac","Eteri","Evim","Eeug","Cgum","Amea","Alit","Sthn Forests VegCode","Adjacent","SCIVI Class","Adjacent","Primary spp presence per SCIVI descriptors (Positive diagnostic species)","Secondary spp presence per SCIVI descriptors  (Positive diagnostic species)","Supplementary spp presence per SCIVI descriptors  (Positive diagnostic species)","Suspected suitable spp presence per SCIVI descriptors  (Positive diagnostic species)","Primary spp presence per Sthn Forests CRA descriptors (Diagnostic species by % group frequency)","Secondary spp presence per Sthn Forests CRA descriptors (Diagnostic species by % group frequency)","Supplementary spp presence per Southern Forests CRA descriptors (Diagnostic species by % group frequency)","Suspected suitable spp presence per Southern Forests CRA descriptors (Diagnostic species by % group frequency)","Primary spp per plot (by number found)","Secondary spp per plot","Supplementary spp per plot","Suspected spp per plot","Decision on SCIVI:Plot compatability","Decision on CRA:Plot compatability","Decision on habitat","Summary of habitat potential"]
["T1",757487,5988490,"Elon","Esie","Elon","Elon","Elon","Excup","Elon","Emue","Ecyp","Ecyp","angflo","Eela","Elon","Acacia falciformis","Esie","Acacia falciformis","Emue","Emue","Elon","Emue","Ecyp","Esie","angflo","Acacia falciformis","Emue","Eglo","Emue","angflo","Elon","Elon",null,9,3,3,3,6,1,0,0,1,0,3,0,0,1,0,0,0,0,0,0,0,0,0,0,0,0,0,0,0,10,"nil","p89","p90","p89 BBay Foothills Frst Eglo29_p90 adjacent Bbay Cycad Frst Eglo62/Emue23/Epil22/Elon10","p89 Econ39",0,"p89 angcost18_p90 adjacent Emac71","VegGp10 Sthn Cstl Lowlands Shrub/Grass Dry Frst Eglo61/Elon52/Emue30/Ecyp30",0,"VegGp10 Sthn Cstl Lowlands Shrub/Grass Dry Frst Emac39/angflo35",0,"9 Elon/6 Emue/1 Eglo/3 Ecyp","1 Eela","3 Esie/3 angflo",0,"Requires adjacent Veg Type for compatability","Confirmed by our ground-proofing","Potentially very good","SCIVI p89/p90 & CRA 10 & Plot T1 Very Good"]
["T2",755575,5988330,"Eglo","Eagg","angflo","Eglo","Ebos","Ebos","Eglo","Ebos","Eglo","Eglo","Eglo","angflo","Ebos","Eglo","Eglo","Eglo","angflo","Eglo","angflo","Eglo","Eglo","Ebos","Eglo","Eglo","angflo","Emue","Eglo","Eglo","Eglo","angflo",null,0,0,6,0,1,17,1,5,0,0,0,0,0,0,0,0,0,0,0,0,0,0,0,0,0,0,0,0,0,58,7,"n183","nil","n183 Sth Coast Hint'land Wet Frst Ecyp72/Emue68/Elon13/Esmith9","n183 Efast28/Esciassubspcallim7","n183angflo30","n183Esalignxbotry11","VegGp58 Tablland & Escarpmt Wet Layered Shrub Frst Ecyp38_VegGp7 adjacent Sthn Cstl Hintlnd Shrub/Tussock Grass Dry Frst Elon52/Emue50/Eglo41","VegGp58 Tablland & Escarpmt Wet Layered Shrub Frst Efast81","_VegGp7 adjacent Sthn Cstl Hintlnd Shrub/Tussock Grass Dry Frst Eagg61/angflo48/Esie43",0,"1 Emue/17 Eglo/3 Ebos","2 Ebau","6 angflo/1 E agg",0,"Partially compatible","Requires adjacent Veg Type for compatability","Potentially very good","SCIVI n183 & CRA 58/7 & Plot T2 Very Good"]
["T7",757650,5989337,"Eela","Ecyp","Ecyp","Eela","angflo","Eela","angflo","angflo","Eela","Eela","Eela","Eela","Eela","Eela","Eela","Eela","Eela","Eela","Eela","Acas","Ebos","angflo","Eela","angflo","Eela","angflo","Ebos","Eela","Eela","Ecyp",null,0,0,6,0,0,0,0,2,18,0,3,0,0,0,0,0,0,0,0,1,0,0,0,0,0,0,0,0,0,35,10,"e4","p30","e4 Brogo Shrub Forest Esmithii71/Emue7_p30 adjacent Sth Coast River Flat Forest Eteri23",0,"e4 Esie7_p30 adjacent angflo28","p89 angflo35/E agg49/Esie66","VegGp35 Sth Coast & Byadbo Acacia Scrubs NO EUCs_VegGp10 adjacent Sthn Cstl Lowlands Shrub/Grass Dry Frst Eglo61/Elon52/Emue30/Ecyp30","VegGp35 Sth Coast & Byadbo Acacia Scrubs NO EUCs","VegGp35 Sth Coast & Byadbo Acacia Scrubs NO EUCs_VegGp10 adjacent Sthn Cstl Lowlands Shrub/Grass Dry Frst Emac39/angflo35","VegGp35 Sth Coast & Byadbo Acacia Scrubs NO EUCs","2 Ebos/3 E cyp","18 Eela","6 angflo",0,"No correlation with e4/p30 confirmed by our gproof","Requires adjacent Veg Type for compatability","Supplementary potential","SCIVI e4/p30 & CRA 35/10 & Plot T7 have Supplementary Potential"]
["T3",754786,5987544,"Ebos","Elon","Elon","Elon","Ebos","Elon","Emue","Elon","Acas","Elon","Eagg","Elon","Ebos","Eagg","Eagg","Ebau","Eagg","Acas","Ebos","Ebos","Ebos","Eagg","Eagg","Acas","Acas","Eagg","Eagg","Acas","Eagg","Acas",null,7,0,0,0,1,0,9,6,0,0,0,0,0,0,0,0,0,0,1,6,0,0,0,0,0,0,0,0,0,7,19,"p91","n183","p91 Clyde-Deua Open Frst Emue93/Esmith33/Ecyp30/Ebos15_n183 adjacent Sth Coast Hint'land Wet Frst Ecyp72/Emue68/Elon13/Esmith9","n183 adjacent Efast28/Esciassubspcallim7","p91 Esie62/Eagg33_n183 adjacent angflo30","n183 adjacent Esalignxbotry11","VegGp7 Sthn Cstl Hintlnd Shrub/Tussock Grass Dry Frst Elon52/Emue50/Eglo41_VegGp19 adjacent Coastl Escpmt & Hintlnd Dry Shrub/Fern Frst Emue89/Ecyp43",0,"VegGp7 Sthn Cstl Hintlnd Shrub/Tussock Grass Dry Frst Eagg61/angflo48/Esie43_VegGp19 adjacent Coastl Escpmt & Hintlnd Dry Shrub/Fern Frst angflo57/Esie31",0,"7 Elon/1 Emue/6 Ebos","1 Ebau","9 Eagg",0,"Reasonably compatible","Confirmed by our ground-proofing","Potentially very good","SCIVI p91/n183 & CRA 7/19 & Plot T3 Very Good"]
["DRA",758997,5987005,"Ebos","Ebos","Emue","Emue","Acacia sp","Ebos","Ebos","Emue","Ebos","Acacia sp","Epan","Ebos","Ebos","Ebos","Acacia sp","Acacia sp","Emue","Acacia sp","Acacia sp","Acacia sp","Emue","Emue","Emue","Ebos","Ebos","Elon","Ebos","Elon","Ebos","Emue",null,2,0,0,0,8,0,0,12,0,0,0,7,0,0,0,0,1,0,0,0,0,0,0,0,0,0,0,0,0,10,"nil","p89","nil","p89 BBay Foothills Frst Eglo29","p89 Econ39",0,"p89 angcost18","VegGp10 Sthn Cstl Lowlands Shrub/Grass Dry Frst Eglo61/Elon52/Emue30/Ecyp30",0,"VegGp10 Sthn Cstl Lowlands Shrub/Grass Dry Frst Emac39/angflo35",0,"2 Elon/8 Emue/12 Ebos",0,0,0,"No correlation","Partially compatible","Potentially fairly good (3 x Pr)","SCIVI p89 & CRA 10 & Plot DRA Fairly Good"]
["N1",760204,6003686,"Eagg","Eagg","Emue","Emue","Emue","Emue","Emue","Emue","Emue","Emue","Emue","Emue","Emue","Emue","Emue","Emue","Eagg","Emue","Eagg","Emue","Emue","Emue","Emue","Emue","Emue","Emue","Emue","Emue","Emue","Emue",null,0,0,0,0,26,0,4,0,0,0,0,0,0,0,0,0,0,0,0,0,0,0,0,0,0,0,0,0,0,7,"nil","p89","nil","p89 BBay Foothills Frst Eglo29","p89 Econ39",0,"p89 angcost18","VegGp7 Sthn Cstl Hintlnd Shrub/Tussock Grass Dry Frst Elon52/Emue50/Eglo41",0,"VegGp7 Sthn Cstl Hintlnd Shrub/Tussock Grass Dry Frst Eagg61/angflo48/Esie43",0,"26 Eglo",0,"4 Eagg",0,"Correlation of Primary Spp Eglo","Confirmed by our ground-pr, but 2Spp only on plot","Insufficient diversity","SCIVI p89 & CRA 7 & Plot N1 No Good"]
["BB1",753565,6002182,"Ecyp","Emue","Ecyp","Ecyp","Emue","Epip","Blueberry Ash","Ecyp","Blueberry Ash","Ecyp","Blueberry Ash","Emue","Ecyp","Cedar","Ecyp","Acacia","Acacia","Emue","Ecyp","Ecyp","Epip","Ecyp","Emue","Ecyp","Ecyp","Ecyp","Ecyp","Epip","Ecyp","Ecyp",null,0,0,0,0,5,0,0,0,0,0,16,0,2,0,3,3,0,1,0,0,0,0,0,0,0,0,0,0,0,19,18,"n183","nil","n183 Sth Coast Hint'land Wet Frst Ecyp72/Emue68/Elon13/Esmith9","n183 Efast28/Esciassubspcallim7","n183angflo30","n183Esalignxbotry11","VegGp19 Coastl Escpmt & Hintlnd Dry Shrub/Fern Frst Emue89/Ecyp43_VegGp18 adjacent Sthn Cstl Htlnd Moist Shrub/Vine/Grass Frst Emue72/Ecyp64",0,"VegGp19 Coastl Escpmt & Hintlnd Dry Shrub/Fern Frst angflo57/Esie31",0,"5 Emue","16 Eela",0,0,"Virtually no correlation","Faint correlation with Prim Spp x1","Requires adjacent forest type for suitability","SCIVI n183 & CRA 19/18 & Plot BB1 Require Adjacent help"]
["TW8",759072,5983910,"Emue","Emue","Ebos","Ebos","angflo","Emue","Ebos","Ebos","Ebos","Emue","Ebos","Ebos","Emue","Ebos","Emue","Emue","Emue","Emue","Emue","Emue","Emue","Emue","Ebos","Emue","Ebos","Emue","Ebos","Ebos","Ebos","Emue",null,0,0,1,0,16,0,0,13,0,0,0,0,0,0,0,0,0,0,0,0,0,0,0,0,0,0,0,0,0,2,48,"p89","n183","p89 BBay Foothills Frst Eglo29_n183 adjacent Sth Coast Hint'land Wet Frst Ecyp72/Emue68/Elon13/Esmith9","p89 Econ39_n183 adjacent Esalignxbotry11","n183 adjacent angflo30","p89 angcost18_n183 adjacent Esalignxbotry11","VegGp2 Sth Coast Lowland Dry Shrub Frst Eglo39_VegGp48 adjacent Cstl Lowlnds Riparian Herb/Grass Frst NO DIAGN EUCs but ocasional Eglo","VegGp2 Sth Coast Lowland Dry Shrub Frst Econsid31_VegGp48 adjacent Cstl Lowlnds Riparian Herb/Grass Frst NO DIAGN EUCs but Eela dominant & ocasional Ebotr","_VegGp48 adjacent Cstl Lowlnds Riparian Herb/Grass Frst NO DIAGN EUCs but angflo dominant",0,"16 Emue/13 Ebos",0,"1 angflo",0,"No correlation","Only Suppl x1Spp correlates","Requires adjacent forest type for suitability","SCIVI p89/n183 & CRA 2/48 & Plot TW8 Require Adjacent help"]
["TW9",757138,5982403,"Esie","Esie","Esie","Esie","Esie","Esie","Esie","Esie","Esie","Esie","Esie","Esie","Ebos","Esie","Esie","Esie","Eagg","Eagg","Eagg","Eagg","Eagg","Eagg","Ebos","Ebos","Esie","Esie","Esie","Esie","Esie","Esie",null,0,21,0,0,0,0,6,3,0,0,0,0,0,0,0,0,0,0,0,0,0,0,0,0,0,0,0,0,0,7,19,"e32A","nil","e32A Deua-Brogo Fthills Dry Shr Frst Elon45/Emue41/Etri33/Eglo32/Ebos9",0,"e32A Esie66/Eagg64/angflo54",0,"VegGp7 Sthn Cstl Hintlnd Shrub/Tussock Grass Dry Frst Elon52/Emue50/Eglo41_VegGp19 adjacent Coastl Escpmt & Hintlnd Dry Shrub/Fern Frst Emue89/Ecyp43",0,"VegGp7 Sthn Cstl Hintlnd Shrub/Tussock Grass Dry Frst Eagg61/angflo48/Esie43_VegGp19 adjacent Coastl Escpmt & Hintlnd Dry Shrub/Fern Frst angflo57/Esie31",0,"3 Ebos",0,"21 Esie/6 Eagg",0,"Confirmed by our ground-proofing","Insufficient correlation","Potentially very good","SCIVI e32A & CRA 7/19 & Plot TW9 Very Good"]
["TW10",756059,5984147,"Esie","Eagg","Eagg","Esie","Esie","Etri","Eagg","Eagg","Etri","Esie","Etri","Eagg","Esie","Esie","Esie","Etri","Esie","Etri","Esie","Eagg","Eagg","Eagg","Esie","Esie","Esie","Esie","Esie","Esie","Esie","Eagg",null,0,16,0,0,0,0,9,0,0,0,0,0,0,0,0,0,0,0,0,0,5,0,0,0,0,0,0,0,0,7,19,"e32A","nil","e32A Deua-Brogo Fthills Dry Shr Frst Elon45/Emue41/Etri33/Eglo32/Ebos9",0,"e32A Esie66/Eagg64/angflo54",0,"VegGp7 Sthn Cstl Hintlnd Shrub/Tussock Grass Dry Frst Elon52/Emue50/Eglo41_VegGp19 adjacent Coastl Escpmt & Hintlnd Dry Shrub/Fern Frst Emue89/Ecyp43",0,"VegGp7 Sthn Cstl Hintlnd Shrub/Tussock Grass Dry Frst Eagg61/angflo48/Esie43_VegGp19 adjacent Coastl Escpmt & Hintlnd Dry Shrub/Fern Frst angflo57/Esie31",0,"5 Etri",0,"16 Esie/9 Eagg",0,"Confirmed by our ground-proofing","Insufficient correlation","Potentially very good","SCIVI e32A & CRA 7/19 & Plot TW10 Very Good"]
["T11",755603,5986037,"Eglo","Eagg","Ecyp","Eglo","Eglo","Eglo","Ecyp","Ecyp","Etri","Etri","Eglo","Etri","Etri","Ecyp","Eglo","Ecyp","Acas","Esie","Etri","Esie","Esie","Ebos","Eglo","Etri","Eagg","Ecyp","Ebos","Ebos","Eagg","Ebos",null,0,3,0,0,0,7,3,4,0,0,6,0,0,0,0,0,0,0,0,1,6,0,0,0,0,0,0,0,0,10,"nil","p91","e32A","p91 Clyde-Deua Open Frst Emue93/Esmith33/Ecyp30/Ebos15_e32A adjacent Elon45/Emue41/Etri33/Eglo32/Ebos9",0,"p91 Esie62/Eagg33_e32A adjacent Esie66/Eagg64/angflo54",0,"VegGp10 Sthn Cstl Lowlands Shrub/Grass Dry Frst Eglo61/Elon52/Emue30/Ecyp30",0,"VegGp10 Sthn Cstl Lowlands Shrub/Grass Dry Frst Emac39/angflo35",0,"7 Eglo/4 Ebos/6 Ecyp/6 Etri",0,"3 Esie/3 Eagg",0,"Confirmed by our ground-proofing","Primaries well correlated","Potentially very good","SCIVI p91/e32A & CRA 10 & Plot T11 Very Good"]
["T4",754488,5988410,"Esie","Eglo","Eang","Eang","Eang","Eang","Eglo","Eglo","Eglo","Eang","Eang","Eglo","Eang","Eglo","Esie","Eglo","Eglo","Eglo","Esie","Eang","Eglo","Eglo","Eang","Eglo","Esie","Eang","Eglo","Eglo","Esie","Eang",null,0,5,0,0,0,14,0,0,0,0,0,0,0,0,0,0,0,0,0,0,0,11,0,0,0,0,0,0,0,null,null,"eW5","nil","eW5 Wadbilliga Gorge Dry Forest_Eglo62/Ecyp15/Emue15/Evim12","Eela21/Ebau15/Econsid12/Erad12","angflo80/Eang50/Eagg21",0,null,null,null,null,"14 Eglo",0,"11 Eang","5 Esie","Confirmed by our ground-proofing",null,"Potentially fairly good (as part of a wider area)","SCIVI eW5 and Plot T4 Fairly Good as part of a wider area"]
["M1",232012,6012588,"Ebos","Etri","Ebos","Eglo","Ebos","Epan","Eglo","Ebos","Ebos","Ebos","Ebos","Emue","Ebos","Ebos","Eang","Eglo","Eglo","Eglo","Ebos","Eglo","Ebos","Ebos","Eglo","Ebos","Cmac","Eang","Eglo","Ebos","Ebos","Ebos",null,0,0,0,0,1,8,0,16,0,0,0,0,0,0,0,0,1,0,0,0,1,2,1,0,0,0,0,0,0,null,null,"p100","nil","p100 Escarpment FoothillsWet Forest Emue26",0,0,0,null,null,null,null,"1 Emue/8 Eglo/16 Ebos/1 Etri",0,"2 Eang/1 Cmac",0,"No correlation with p100 confirmed by our gproof_it's not wet at M1!",null,"Potentially very good","SCIVI p100 & Plot M1 Very Good"]
["M2",233687,6015206,"Epan","Eeug","Ebos","Eglo","Ebos","Ebos","Ebos","Ebos","Ebos","Epan","Epan","Epan","Ebos","Epan","Epan","Epan","Epan","Epan","Epan","Epan","Eglo","Epan","Eglo","Epan","Ebos","Ebos","Eeug","Ebos","Ebos","Epan",null,0,0,0,0,0,3,0,11,0,0,0,0,0,0,0,0,14,0,0,0,0,0,0,0,0,2,0,0,0,"Sthn Forsts CRA map not",null,"e32A","p100","e32A Deua-Brogo Fthills Dry Shr Frst Elon45/Emue41/Etri33/Eglo32/Ebos9_p100 adjacent Escarpment FoothillsWet Forest Emue26",0,"e32A Esie66/Eagg64/angflo54",0,null,"Sthn Forsts CRA descriptors not",null,null,"3 Eglo/11 Ebos",0,0,0,"Partially compatible",null,"Potentially very good","SCIVI e32A & Plot M2 Good"]
["BQ1",234753,6037574,"Cmac","Etri","Etri","Etri","Cmac","Cmac","Eglo","Cmac","Cmac","Cmac","Etri","Eglo","Eglo","Cmac","Eglo","Cmac","Eglo","Cmac","Eglo","Cmac","Cmac","Cmac","Etri","Eglo","Cmac","Cmac","Cmac","Cmac","Cmac","Cmac",null,0,0,0,0,0,7,0,0,0,0,0,0,0,0,0,0,0,0,0,0,5,0,18,0,0,0,0,0,0,"done for second group of",null,"p90","nil","p90 Batemans Bay Cycad Forest_Eglo62/Emue23/Epil22/Elon10",0,"Cmac71","angcost4/Esaligxbot1",null,"done for second group of",null,null,"7 Eglo/5 Etri",0,"18 Cmac",0,"Reasonably compatible",null,"Potentially modestly useful (2 Prim but low in numbers)","SCIVI p90 & Plot BQ1 Good"]
["RUN1",239638,6043023,"Eteri","Eteri","Eteri","Eteri","Eteri","Ebos","Cmac","Ebos","Eteri","Eteri","Eteri","Eteri","Eteri","Eteri","Angflo","Angflo","Eteri","Ebos","Eteri","Eteri","Eteri","Ebos","Ebos","Eteri","Angflo","Angflo","Eteri","Angflo","Eteri","Eteri",null,0,0,5,0,0,0,0,5,0,0,0,0,0,0,0,0,0,0,0,0,0,0,1,19,0,0,0,0,0,"plots",null,"p30","nil","p30 Sth Coast River Flat Forest Eteri23",0,"p30 angflo28",0,null,"plots",null,null,"5 Ebos/19 Eteri",0,"5 angflo/1 Cmac",0,"Confirmed by our ground-proofing",null,"Potentially good (2 Prims)","SCIVI p30 & Plot RUN1 Good"]
["MERRI1",765648,6038292,"Angflo","Evim","Angflo","Angflo","Eglo","Eglo","Eglo","Evim","Angflo","Evim","Evim","Eglo","Evim","Evim","Eglo","Angflo","Evim","Eglo","Eglo","Eglo","Eglo","Evim","Angflo","Angflo","Evim","Acas","Ecyp","Eglo","Angflo","Ecyp",null,0,0,8,0,0,10,0,0,0,0,2,0,0,0,0,0,0,0,0,1,0,0,0,0,9,0,0,0,0,null,null,"p90","nil","p90 Batemans Bay Cycad Forest_Eglo62/Emue23/Epil22/Elon10",0,"Cmac71","angcost4/Esaligxbot1",null,null,null,null,"10 Eglo/9 Evim/2 Ecyp",0,"8 angflo/1 Acas",0,"Partially compatible",null,"Potentially very good (3 Prims)","SCIVI p90 & Plot MERRI1 Very Good"]
["EL1",248136,6061754,"Epip","Eglo","Eglo","Eglo","Eglo","Epip","Epip","Epip","Eglo","Epip","Epip","Eglo","Ecyp","Eglo","Epip","Epip","Epip","Epip","Eglo","Ecyp","Epip","Epip","Epip","Eglo","Cgum","Cgum","Cgum","Cgum","Ecyp","Eglo",null,0,0,0,0,0,10,0,0,0,0,3,0,0,0,13,0,0,0,0,0,0,0,0,0,0,0,4,0,0,null,null,"p104","nil","p104 Southern Lowland wet Forest_Eglo 34/Epil59","Escias6","Cmac78","Esaligxbotryoi11",null,null,null,null,"10 Eglo/3 Ecyp",0,0,0,"Partially compatible",null,"Potentially fairly good (2 Prims)","SCIVI p104 & Plot EL1  Good"]
["EL2",248623,6061467,"Cgum","Cgum","Cgum","Cgum","Cgum","Cgum","Ecyp","Eglo","Cgum","Eglo","Cmac","Cgum","Eglo","Eglo","Eglo","Cgum","Eglo","Eglo","Cmac","Eglo","Eglo","Eglo","Eglo","Epip","Epip","Eglo","Cgum","Cgum","Epip","Cgum",null,0,0,0,0,0,12,0,0,0,0,1,0,0,0,3,0,0,0,0,0,0,0,2,0,0,0,12,0,0,null,null,"p104","nil","p104 Southern Lowland wet Forest_Eglo 34/Epil59","Escias6","Cmac78","Esaligxbotryoi11",null,null,null,null,"12 Eglo/1 Ecyp",0,"2 Cmac",0,"Reasonably compatible",null,"Potentially fairly good (2 Prims)","SCIVI p104 & Plot EL2 Very  Good"]
["C2",762554,5996627,"angflo","Eela","Amea","Eela","Amea","Eela","Eela","Eela","Eela","Eela","Eela","Eela","Eela","Eela","angflo","Eela","angflo","Emue","Emue","Ebos","Ebos","Eela","Eela","Ebos","Eela","Eela","Eela","Eela","Ebos","Eela",null,0,0,3,0,2,0,0,4,19,0,0,0,0,0,0,0,0,0,0,0,0,0,0,0,0,0,0,2,0,null,null,"p89","p30","p89 BBay Foothills Frst Eglo29_p30 adjacent Sth Coast River Flat Forest Eteri23","p89 Econ39","0_p30 adjacent angflo28","p89 angcost18",null,null,null,null,"2 Emue/4 Ebos","19 Eela","3 angflo",0,"No correlation",null,"Potentially fairly good alongside adjacent","SCIVI p89/p30 and Plot C2 Good"]
["C3",762616,5996718,"angflo","Alit","angflo","angflo","Ebos","angflo","angflo","Ebos","Alit","angflo","Ebos","Eela","Ebos","angflo","Eela","angflo","Ebos","Eela","angflo","Eela","Eela","Eela","Eela","Eela","Eela","Eela","Eela","Cedar","Eela","angflo",null,0,0,10,0,0,0,0,5,12,0,0,0,0,0,0,0,0,1,0,0,0,0,0,0,0,0,0,0,2,null,null,"p89","nil","p89 BBay Foothills Frst Eglo29","p89 Econ39",0,"p89 angcost18",null,null,null,null,"5 Ebos","12 Eela","10 angflo",0,"No correlation",null,"Potentially fairly good alongside adjacent","SCIVI p89/p30 and Plot C2 Fairly Good with adjacent"]

{"sheet":"(T1) 21.3.12","index":2,"n_rows":48,"n_cols":10,"rows_kept":48,"cut":false,"hidden":false,"merged":[[21,6,21,9],[17,6,17,9],[7,0,7,2],[6,5,6,9],[14,6,14,9],[16,6,16,9],[11,0,11,4],[19,6,19,9],[13,6,13,9],[8,0,8,9],[33,6,33,9],[43,0,43,2],[29,6,29,7],[22,6,23,9],[24,6,24,7],[28,6,28,7],[11,8,11,9],[11,6,11,7],[0,0,0,9],[1,0,1,9],[2,0,2,9],[3,0,3,9],[4,0,4,2],[4,8,4,9],[5,0,5,9]]}
["Biolink Ecological Consultants Pty Ltd PO Box 196 Uki NSW 2484 0266726966"]
[" Dept of Environment and Conservation PO Box 656 Merimbula NSW 2548 0264955008"]
["TINPOT KOALA SURVEY 2012"]
["REGULARISED GRID-BASED SPOT ASSESSMENT TECHNIQUE"]
["Site Number_Tinpot 1 (T1)_",null,null,"Recorder_Kahli Beissner_",null,null,null,"Time_1045 EST_","Date_21/3/2012_"]
["Site Location_Tinpot_"]
["______________________________________________________",null,null,null,null,"Site Tenure_Private land (Bob & Jan Hickman)_"]
["Easting_0757487_",null,null,"Northing_5988490_",null,null,"Datum_UTM 55_",null,"GPS Error_+/- 18 m_"]
["Geology (Granitic, Metasediment or Bassalt?)_Metasediment_"]
["Soil Depth (Hardly Any, Some Depth or Deep Topsoil?)",null,null,null,null,null,"Some Depth"]
["Soil Type (Sandy, Sandy Loam or Loam?)",null,null,null,null,"Loam",null,"Aspect:","Slope down to SSE"]
["Trees recorded clockwise on N bearing from Centre Tree",null,null,null,null,null,"Plot Radius_17.25 m_",null,"SAT Criteria  3"]
[null,"TSP","DBH","Koala","KFP",null,null,"1haveseenkoala","2haveseenpellets","3gridplot"]
[1,"Elon","475 mm",null,null,null,"Groundcover ease of searching"]
[2,"Esie",1050,null,null,null,"            Moderate                  "]
[3,"Elon",160]
[4,"Elon",360,null,null,null,"Koala information"]
[5,"Elon",646,null,null,null,"Pellet Age         Old     Mixed    Fresh"]
[6,"Excup",210,null,null,null,"A/level______/_______=_______%",null,null,"ie pell/trees"]
[7,"Elon",210,null,null,null,"Comments"]
[8,"Emue",220]
[9,"Ecyp",470,null,null,null,"Information about other Fauna"]
[10,"Ecyp",375,null,null,null,"Nature of Observation                                                P: Pellets, D: Digs, O: Observ, N: Nest, C: Call, M: Mound"]
[11,"angflo",239]
[12,"Eela",670,null,null,null,"Wallaby  P",null,"BT Possum  P"]
[13,"Elon",400,null,null,null,"EG Kangaroo",null,"RT Possum"]
[14,"Acacia falciformis",199,null,null,null,"LN Bandicoot",null,"YB Glider"]
[15,"Esie",163,null,null,null,"LN Potoroo",null,"Lyrebird"]
[16,"Acacia falciformis",190,null,null,null,"Wombat  P",null,"Bell minor"]
[17,"Emue",157,null,null,null,"Rabbit  P",null,"Deer"]
[18,"Emue",162,null,null,null,"G.Glider",null,"Other"]
[19,"Elon",190,null,null,null,"No of  Bandi/Potoroo digs within 5m of CT"]
[20,"Emue",298,null,null,null,"Unsure? -","Use","Comments"]
[21,"Ecyp",720,null,null,null,"Team Members"]
[22,"Esie",190,null,null,null,"Chris","Tristan","Rob","Judy"]
[23,"angflo",170,null,null,null,"Heather","Bob","John","Keith"]
[24,"Acacia falciformis",150,null,null,null,"Kahli"]
[25,"Emue",669]
[26,"Eglo",397,null,null,null,"Transect"]
[27,"Emue",380,null,null,null,null,"Time","Eastings","Northings"]
[28,"angflo",655,null,null,null,"Start"]
[29,"Elon",190,null,null,null,"Finish"]
[30,"Elon",290,null,null,null,"Pellet sites"]
["OTHER COMMENTS",null,null,null,null,null,"Pellet sites"]
[null,"E. angophoroides along edge of plot."]
[null,"Nearby presence of E. bosistoana.",null,null,null,null,"Data Entry Information",null,null,"Date"]
[null,"E. tereticornis 0757605E 5988679N.",null,null,null,null,"Checked by"]
[null,null,null,null,null,null,"Entered by"]

{"sheet":"(T2) 28.3.12","index":3,"n_rows":48,"n_cols":10,"rows_kept":48,"cut":false,"hidden":false,"merged":[[21,6,21,9],[17,6,17,9],[7,0,7,2],[6,5,6,9],[14,6,14,9],[16,6,16,9],[11,0,11,4],[19,6,19,9],[13,6,13,9],[8,0,8,9],[33,6,33,9],[43,0,43,2],[29,6,29,7],[22,6,23,9],[24,6,24,7],[28,6,28,7],[11,8,11,9],[11,6,11,7],[0,0,0,9],[1,0,1,9],[2,0,2,9],[3,0,3,9],[4,0,4,2],[4,8,4,9],[5,0,5,9]]}
["Biolink Ecological Consultants Pty Ltd PO Box 196 Uki NSW 2484 0266726966"]
[" Dept of Environment and Conservation PO Box 656 Merimbula NSW 2548 0264955008"]
["TINPOT KOALA SURVEY 2012"]
["REGULARISED GRID-BASED SPOT ASSESSMENT TECHNIQUE"]
["Site Number_T2_",null,null,"Recorder_Keith Joliffe_",null,null,null,"Time_1100_","Date_28/3/2012_"]
["Site Location_Tinpot Flora Reserve_"]
["______________________________________________________",null,null,null,null,"Site Tenure_Forests NSW_"]
["Easting_0755575_",null,null,"Northing_5988330_",null,null,"Datum_UTM 55_",null,"GPS Error_+/- 8 m_"]
["Geology (Granitic, Metasediment or Bassalt?)_Metasediment_"]
["Soil Depth (Hardly Any, Some Depth or Deep Topsoil?)",null,null,null,null,null,"Some Depth"]
["Soil Type (Sandy, Sandy Loam or Loam?)",null,null,null,null,"Loam",null,"Aspect:","Slopes down to NW"]
["Trees recorded clockwise on N bearing from Centre Tree",null,null,null,null,null,"Plot Radius_41.5m_",null,"SAT Criteria  3"]
[null,"TSP","DBH","Koala","KFP",null,null,"1haveseenkoala","2haveseenpellets","3gridplot"]
[1,"Eglo",480,null,null,null,"Groundcover ease of searching"]
[2,"Eagg",520,null,null,null,"                           Easy"]
[3,"angflo",230]
[4,"Eglo",370,null,null,null,"Koala information"]
[5,"Ebos",365,null,null,null,"Pellet Age         Old     Mixed    Fresh"]
[6,"Ebos",285,null,null,null,"A/level______/_______=_______%",null,null,"ie pell/trees"]
[7,"Eglo",200,null,null,null,"Comments"]
[8,"Ebos/bau/mic/mol?",380]
[9,"Eglo",508,null,null,null,"Information about other Fauna"]
[10,"Eglo",460,null,null,null,"Nature of Observation                                                P: Pellets, D: Digs, O: Observ, N: Nest, C: Call, M: Mound"]
[11,"Eglo",590]
[12,"angflo","400 x2",null,null,null,"Wallaby P",null,"BT Possum P"]
[13,"Ebos/bau/mic/mol?",810,null,null,null,"EG Kangaroo P",null,"RT Possum"]
[14,"Eglo",530,null,null,null,"LN Bandicoot",null,"YB Glider"]
[15,"Eglo",730,null,null,null,"LN Potoroo",null,"Lyrebird"]
[16,"Eglo",700,null,null,null,"Wombat P",null,"Bell minor"]
[17,"angflo",460,null,null,null,"Rabbit",null,"Deer"]
[18,"Eglo",450,null,null,null,"G.Glider",null,"Other"]
[19,"angflo",260,null,null,null,"No of  Bandi/Potoroo digs within 5m of CT"]
[20,"Eglo",637,null,null,null,"Unsure? -","Use","Comments"]
[21,"Eglo",540,null,null,null,"Team Members"]
[22,"Ebos",280,null,null,null,"John Cl.","John Cow.","Rob","Judy"]
[23,"Eglo",320,null,null,null,"Bob","Keith"]
[24,"Eglo",480]
[25,"angflo",675]
[26,"Emue",700,null,null,null,"Transect"]
[27,"Eglo",440,null,null,null,null,"Time","Eastings","Northings"]
[28,"Eglo",220,null,null,null,"Start"]
[29,"Eglo",545,null,null,null,"Finish"]
[30,"angflo",265,null,null,null,"Pellet sites"]
["OTHER COMMENTS",null,null,null,null,null,"Pellet sites"]
["Unidentified old scat Tree #2 (bagged)."]
["Remnants of old hut, fireplace on plot.",null,null,null,null,null,"Data Entry Information",null,null,"Date"]
["Plot had been burnt - lots of charcoal & stringys blackened.",null,null,null,null,null,"Checked by"]
["Drove through nearby Eteret. on the way, but not up on this ridge.",null,null,null,null,null,"Entered by"]

{"sheet":"(T7) 4.4.12","index":4,"n_rows":48,"n_cols":13,"rows_kept":48,"cut":false,"hidden":false,"merged":[[21,6,21,9],[17,6,17,9],[7,0,7,2],[6,5,6,9],[14,6,14,9],[16,6,16,9],[11,0,11,4],[19,6,19,9],[13,6,13,9],[8,0,8,9],[33,6,33,9],[43,0,43,2],[29,6,29,7],[22,6,23,9],[24,6,24,7],[28,6,28,7],[11,8,11,9],[11,6,11,7],[0,0,0,9],[1,0,1,9],[2,0,2,9],[3,0,3,9],[4,0,4,2],[4,8,4,9],[5,0,5,9]]}
["Biolink Ecological Consultants Pty Ltd PO Box 196 Uki NSW 2484 0266726966"]
[" Dept of Environment and Conservation PO Box 656 Merimbula NSW 2548 0264955008"]
["TINPOT KOALA SURVEY 2012"]
["REGULARISED GRID-BASED SPOT ASSESSMENT TECHNIQUE"]
["Site Number_T7_",null,null,"Recorder_Keith Joliffe_",null,null,null,"Time_1100_","Date_4/4/2012_"]
["Site Location_Tinpot nearer house well above floodline near Tuross River_"]
["______________________________________________________",null,null,null,null,"Site Tenure_Private land (Bob & Jan Hickman)_"]
["Easting_0757650_",null,null,"Northing_5989337_",null,null,"Datum_UTM 55_",null,"GPS Error_+/- 8 m_"]
["Geology (Granitic, Metasediment or Bassalt?)_Metasediment_(small river rocks around fallen tree roots)"]
["Soil Depth (Hardly Any, Some Depth or Deep Topsoil?)",null,null,null,null,null,"Some depth"]
["Soil Type (Sandy, Sandy Loam or Loam?)",null,null,null,null,"Loam",null,"Aspect:","V. slight slope to North"]
["Trees recorded clockwise on N bearing from Centre Tree",null,null,null,null,null,"Plot Radius_16.1 m_",null,"SAT Criteria  3"]
[null,"TSP","DBH","Koala","KFP",null,null,"1haveseenkoala","2haveseenpellets","3gridplot"]
[1,"Eela",875,null,null,null,"Groundcover ease of searching"]
[2,"Ecyp",210,null,null,null,"            Moderate        "]
[3,"Ecyp",295]
[4,"Eela",320,null,null,null,"Koala information"]
[5,"angflo",200,null,null,null,"Pellet Age         Old     Mixed    Fresh"]
[6,"Eela",285,null,null,null,"A/level______/_______=_______%",null,null,"ie pell/trees"]
[7,"angflo",185,null,null,null,"Comments"]
[8,"angflo",200,null,null,null,"Wombat holes between plot & river"]
[9,"Eela",300,null,null,null,"Information about other Fauna"]
[10,"Eela",240,null,null,null,"Nature of Observation                                                P: Pellets, D: Digs, O: Observ, N: Nest, C: Call, M: Mound"]
[11,"Eela",260]
[12,"Eela",250,null,null,null,"Wallaby P?",null,"BT Possum"]
[13,"Eela",160,null,null,null,"EG Kangaroo",null,"RT Possum"]
[14,"Eela",175,null,null,null,"LN Bandicoot ? P & D",null,"YB Glider"]
[15,"Eela",260,null,null,null,"LN Potoroo",null,"Lyrebird"]
[16,"Eela",165,null,null,null,"Wombat P & D",null,"Bell minor"]
[17,"Eela",210,null,null,null,"Rabbit",null,"Deer"]
[18,"Eela",1360,"x 4",null,null,"G.Glider",null,"Other"]
[19,"Eela",460,null,null,null,"No of  Bandi/Potoroo digs within 5m of CT ~ 6",null,null,null,null,null,"Just noticed - I forgot to put Number of bandicoot digs within 5m of Centre Tree, at survey plot Tinpot #7."]
[20,"Acas",160,null,null,null,"Unsure? -","Use","Comments",null,null,null,"We think they are bandicoot."]
[21,"E microcormis?",180,null,null,null,"Team Members",null,null,null,null,null,"They are all over the place."]
[22,"angflo",300,null,null,null,"Keith","Bob","John Cl.",null,null,null,"I'm estimating approx. 6 digs within 5m of CT, but plenty more around the plot."]
[23,"Eela",305,null,null,null,null,null,null,null,null,null,"I've bagged some scats, but not sure if they're something else."]
[24,"angflo",300,null,null,null,null,null,null,null,null,null,"Only one of the digs had scats near it."]
[25,"Eela",600]
[26,"angflo",325,null,null,null,"Transect"]
[27,"Ebos",155,null,null,null,null,"Time","Eastings","Northings"]
[28,"Eela",410,null,null,null,"Start"]
[29,"Eela",245,null,null,null,"Finish"]
[30,"Ecyp",210,null,null,null,"Pellet sites"]
["OTHER COMMENTS",null,null,null,null,null,"Pellet sites"]
["incl","Unsure TSP",null,"Pre-logged regrowth."]
["Sthn Hint'land Shrub/Herb/Grass Rip.Forest?",null,null,null,null,null,"Data Entry Information",null,null,"Date"]
["Tricky euc ID: elata/sieb & cypell/bosist/microc.",null,null,null,null,null,"Checked by"]
["Tricky dig ID: bandicoot/potoroo [scats bagged].",null,null,null,null,null,"Entered by"]

{"sheet":"(T3) 11.4.12","index":5,"n_rows":48,"n_cols":16,"rows_kept":48,"cut":false,"hidden":false,"merged":[[21,6,21,9],[17,6,17,9],[7,0,7,2],[6,5,6,9],[14,6,14,9],[16,6,16,9],[11,0,11,4],[19,6,19,9],[13,6,13,9],[8,0,8,9],[33,6,33,9],[43,0,43,2],[29,6,29,7],[22,6,23,9],[24,6,24,7],[28,6,28,7],[11,8,11,9],[11,6,11,7],[0,0,0,9],[1,0,1,9],[2,0,2,9],[3,0,3,9],[4,0,4,2],[4,8,4,9],[5,0,5,9]]}
["Biolink Ecological Consultants Pty Ltd PO Box 196 Uki NSW 2484 0266726966"]
[" Dept of Environment and Conservation PO Box 656 Merimbula NSW 2548 0264955008"]
["TINPOT KOALA SURVEY 2012"]
["REGULARISED GRID-BASED SPOT ASSESSMENT TECHNIQUE"]
["Site Number_T 3_",null,null,"Recorder_Keith Joliffe_",null,null,null,"Time_1100_","Date_11/4/2012_"]
["Site Location_Tinpot Kooraban NP (or private) beyond/adjacent to Preserve_"]
["______________________________________________________",null,null,null,null,"Site Tenure_National Park (or inside private boundary?)"]
["Easting_0754786_",null,null,"Northing_5987544_",null,null,"Datum_UTM 55_",null,"GPS Error_+/- 6m_"]
["Geology (Granitic, Metasediment or Bassalt?)_Metasediment_"]
["Soil Depth (Hardly Any, Some Depth or Deep Topsoil?)",null,null,null,null,null,null,"Some Depth"]
["Soil Type (Sandy, Sandy Loam or Loam?)",null,null,null,null,"Loam",null,"Aspect:","Slopes down to East"]
["Trees recorded clockwise on N bearing from Centre Tree",null,null,null,null,null,"Plot Radius_23 metres_",null,"SAT Criteria   3"]
[null,"TSP","DBH","Koala","KFP",null,null,"1haveseenkoala","2haveseenpellets","3gridplot",null,null,null,null,null," "]
[1,"Ebos",485,null,null,null,"Groundcover ease of searching"]
[2,"Elon",640,null,null,null,"Easy"]
[3,"Elon",310,null,null,null,"Seed pods intermingled (vigorous rain runoff)"]
[4,"Elon",460,null,null,null,"Koala information"]
[5,"Ebos",490,null,null,null,"Pellet Age         Old     Mixed    Fresh"]
[6,"Elon",420,null,null,null,"A/level______/_______=_______%",null,null,"ie pell/trees"]
[7,"Emue",350,null,null,null,"Comments"]
[8,"Elon",390]
[9,"Acas",155,null,null,null,"Information about other Fauna"]
[10,"Elon",660,null,null,null,"Nature of Observation                                                P: Pellets, D: Digs, O: Observ, N: Nest, C: Call, M: Mound"]
[11,"Eagg",510]
[12,"Elon",600,null,null,null,"Wallaby",null,"BT Possum"]
[13,"Ebos",390,null,null,null,"EG Kangaroo P",null,"RT Possum"]
[14,"Eagg",250,null,null,null,"LN Bandicoot",null,"YB Glider"]
[15,"Eagg",320,null,null,null,"LN Potoroo",null,"Lyrebird"]
[16,"Ebau",620,null,null,null,"Wombat P",null,"Bell minor"]
[17,"Eagg",490,null,null,null,"Rabbit",null,"Deer"]
[18,"Acas",190,null,null,null,"G.Glider",null,"Other RB Blk Snake"]
[19,"Ebos",640,null,null,null,"No of  Bandi/Potoroo digs within 5m of CT"]
[20,"Ebos",475,null,null,null,"Unsure? -","Use","Comments"]
[21,"Ebos",310,null,null,null,"Team Members"]
[22,"Eagg",300,null,null,null,"Keith","Bob","Rob","Judy"]
[23,"Eagg",440]
[24,"Acas",170]
[25,"Acas",160]
[26,"Eagg",620,null,null,null,"Transect",null,"Scats bagged (possum?)"]
[27,"Eagg",360,null,null,null,null,"Time","Eastings","Northings"]
[28,"Acas",170,null,null,null,"Start",1430]
[29,"Eagg",365,null,null,null,"Finish",1450]
[30,"Acas",185,null,null,null,"Pellet sites",null,754828,5987570]
["OTHER COMMENTS",null,null,null,null,null,"Pellet sites"]
["incl","Unsure TSP",null,null,null,null,"Damper slope; bigger trees below road"]
["Small casuarina regrowth prolific; minimal other underst.",null,null,null,null,null,"Data Entry Information",null,null,"Date"]
["Non-Stringy large trees looked stressed.",null,null,null,null,null,"Checked by"]
["Evidence of pre-logging & burning.",null,null,null,null,null,"Entered by"]

{"sheet":"(DRA) 18.4.12","index":6,"n_rows":48,"n_cols":10,"rows_kept":48,"cut":false,"hidden":false,"merged":[[21,6,21,9],[17,6,17,9],[7,0,7,2],[6,5,6,9],[14,6,14,9],[16,6,16,9],[11,0,11,4],[19,6,19,9],[13,6,13,9],[8,0,8,9],[33,6,33,9],[43,0,43,2],[29,6,29,7],[22,6,23,9],[24,6,24,7],[28,6,28,7],[11,8,11,9],[11,6,11,7],[0,0,0,9],[1,0,1,9],[2,0,2,9],[3,0,3,9],[4,0,4,2],[4,8,4,9],[5,0,5,9]]}
["Biolink Ecological Consultants Pty Ltd PO Box 196 Uki NSW 2484 0266726966"]
[" Dept of Environment and Conservation PO Box 656 Merimbula NSW 2548 0264955008"]
["TINPOT KOALA SURVEY 2012"]
["REGULARISED GRID-BASED SPOT ASSESSMENT TECHNIQUE"]
["Site Number_DRA_",null,null,"Recorder_Keith Joliffe_",null,null,null,"Time_1030_","Date_18/4/2012_"]
["Site Location_DARTS ROAD \"A\" PLOT Tinpot_"]
["______________________________________________________",null,null,null,null,"Site Tenure_Kooraban NP (ex-Bodalla SF)_"]
["Easting_0758997_",null,null,"Northing_5987005_",null,null,"Datum_UTM 55_",null,"GPS Error_+/- 9m_"]
["Geology (Granitic, Metasediment or Bassalt?)_Metasediment_"]
["Soil Depth (Hardly Any, Some Depth or Deep Topsoil?)",null,null,null,null,null,"Some Depth",null,"{Quite steeply}…"]
["Soil Type (Sandy, Sandy Loam or Loam?)",null,null,null,null,"Loam","{Sandy?}","Aspect:","Slopes down to East"]
["Trees recorded clockwise on N bearing from Centre Tree",null,null,null,null,null,"Plot Radius_39.5 m_",null,"SAT Criteria  3"]
[null,"TSP","DBH","Koala","KFP",null,null,"1haveseenkoala","2haveseenpellets","3gridplot"]
[1,"Ebos",940,null,null,null,"Groundcover ease of searching"]
[2,"Ebos",990,null,null,null,"            Moderate               "]
[3,"Emue",430]
[4,"Emue",380,null,null,null,"Koala information"]
[5,"Acacia sp",195,null,null,null,"Pellet Age         Old     Mixed    Fresh"]
[6,"Ebos",610,null,null,null,"A/level______/_______=_______%",null,null,"ie pell/trees"]
[7,"Ebos",550,null,null,null,"Comments"]
[8,"Emue",390]
[9,"Ebos",860,null,null,null,"Information about other Fauna"]
[10,"Acacia sp",190,null,null,null,"Nature of Observation                                                P: Pellets, D: Digs, O: Observ, N: Nest, C: Call, M: Mound"]
[11,"Epan",270]
[12,"Ebos",690,null,null,null,"Wallaby P",null,"BT Possum"]
[13,"Ebos",690,null,null,null,"EG Kangaroo",null,"RT Possum"]
[14,"Ebos",310,null,null,null,"LN Bandicoot",null,"YB Glider"]
[15,"Acacia sp",230,null,null,null,"LN Potoroo",null,"Lyrebird"]
[16,"Acacia sp",170,null,null,null,"Wombat P",null,"Bell minor"]
[17,"Emue",560,null,null,null,"Rabbit D",null,"Deer"]
[18,"Acacia sp",250,null,null,null,"G.Glider",null,"Other"]
[19,"Acacia sp",230,null,null,null,"No of  Bandi/Potoroo digs within 5m of CT"]
[20,"Acacia sp",280,null,null,null,"Unsure? -","Use","Comments"]
[21,"Emue",300,null,null,null,"Team Members"]
[22,"Emue",270,null,null,null,"Keith","Rob","Bob"]
[23,"Emue",360]
[24,"Ebos",820]
[25,"Ebos",560]
[26,"Elon",860,null,null,null,"Transect"]
[27,"Ebos",970,null,null,null,null,"Time","Eastings","Northings"]
[28,"Elon",580,null,null,null,"Start"]
[29,"Ebos",640,null,null,null,"Finish"]
[30,"Emue",360,null,null,null,"Pellet sites"]
["OTHER COMMENTS",null,null,null,null,null,"Pellet sites"]
["incl","Unsure TSP","Ebos our best ID, but Esie?",null,null,"Other fruits bagged_larger/rounder-poss. a few other spp"]
["Major disturb./severe prev. logging & prev. fire",null,null,null,null,null,"Data Entry Information",null,null,"Date"]
["Soft disturbed soil",null,null,null,null,null,"Checked by"]
["Quite dense wattle & weed understory regrowth",null,null,null,null,null,"Entered by"]

{"sheet":"(N1) 2.5.12","index":7,"n_rows":48,"n_cols":10,"rows_kept":48,"cut":false,"hidden":false,"merged":[[11,8,11,9],[11,6,11,7],[0,0,0,9],[1,0,1,9],[2,0,2,9],[3,0,3,9],[4,0,4,2],[4,8,4,9],[5,0,5,9],[33,6,33,9],[43,0,43,2],[29,6,29,7],[22,6,23,9],[24,6,24,7],[28,6,28,7],[21,6,21,9],[17,6,17,9],[7,0,7,2],[6,5,6,9],[14,6,14,9],[16,6,16,9],[11,0,11,4],[19,6,19,9],[13,6,13,9],[8,0,8,9]]}
["Biolink Ecological Consultants Pty Ltd PO Box 196 Uki NSW 2484 0266726966"]
[" Dept of Environment and Conservation PO Box 656 Merimbula NSW 2548 0264955008"]
["EUROBODALLA PILOT PLOTS KOALA SURVEY 2012"]
["REGULARISED GRID-BASED SPOT ASSESSMENT TECHNIQUE"]
["Site Number_N1_",null,null,"Recorder_Keith Joliffe_",null,null,null,"Time_1030_","Date_2/5/2012_"]
["Site Location_Low ridge above Gulph Creek Nerrigundah - plot eucs are different from the creekside_"]
["______________________________________________________","(probly Rick's actual sighting - Monkey Gums)",null,null,null,"Site Tenure_Dampier State Forest_"]
["Easting_0760204_",null,null,"Northing_6003686_",null,null,"Datum_UTM 55_",null,"GPS Error_+/- 5m_"]
["Geology (Granitic, Metasediment or Bassalt?)_Metasediment_"]
["Soil Depth (Hardly Any, Some Depth or Deep Topsoil?)",null,null,null,null,null,"Some Depth"]
["Soil Type (Sandy, Sandy Loam or Loam?)",null,null,null,null,"Loam",null,"Aspect:","V.Slight slope down to Sth"]
["Trees recorded clockwise on N bearing from Centre Tree",null,null,null,null,null,"Plot Radius_23 m_",null,"SAT Criteria  1 "]
[null,"TSP","DBH","Koala","KFP",null,null,"1haveseenkoala","2haveseenpellets","3gridplot"]
[1,"Eagg",860,null,null,null,"Groundcover ease of searching"]
[2,"Eagg",620,null,null,null,"    Difficult"]
[3,"Emue","1100 x3",null,null,null,"Many large fallen branches & viney understory"]
[4,"Emue",170,null,null,null,"Koala information"]
[5,"Emue",155,null,null,null,"Pellet Age         Old     Mixed    Fresh"]
[6,"Emue",280,null,null,null,"A/level______/_______=_______%",null,null,"ie pell/trees"]
[7,"Emue",165,null,null,null,"Comments"]
[8,"Emue",190]
[9,"Emue",235,null,null,null,"Information about other Fauna"]
[10,"Emue","200 x2",null,null,null,"Nature of Observation                                                P: Pellets, D: Digs, O: Observ, N: Nest, C: Call, M: Mound"]
[11,"Emue",200]
[12,"Emue",470,null,null,null,"Wallaby P",null,"BT Possum"]
[13,"Emue",710,null,null,null,"EG Kangaroo",null,"RT Possum"]
[14,"Emue",190,null,null,null,"LN Bandicoot",null,"YB Glider"]
[15,"Emue",250,null,null,null,"LN Potoroo",null,"Lyrebird M"]
[16,"Emue",200,null,null,null,"Wombat P",null,"Bell minor"]
[17,"Eagg",770,null,null,null,"Rabbit",null,"Deer"]
[18,"Emue",490,null,null,null,"G.Glider",null,"Other"]
[19,"Eagg",500,null,null,null,"No of  Bandi/Potoroo digs within 5m of CT"]
[20,"Emue",700,null,null,null,"Unsure? -","Use","Comments"]
[21,"Emue",420,null,null,null,"Team Members"]
[22,"Emue",710,null,null,null,"Bob","Rob","Keith"]
[23,"Emue",615]
[24,"Emue",170]
[25,"Emue",170]
[26,"Emue",280,null,null,null,"Transect"]
[27,"Emue",210,null,null,null,null,"Time","Eastings","Northings"]
[28,"Emue",155,null,null,null,"Start"]
[29,"Emue",175,null,null,null,"Finish"]
[30,"Emue",530,null,null,null,"Pellet sites"]
["OTHER COMMENTS",null,null,null,null,null,"Pellet sites"]
["incl","Unsure TSP",null,null,null,null,"Prev. fire damage/some deformed trees"]
["Fruits intermingling incl. Ecyp: not precisely like book.",null,null,null,null,null,"Data Entry Information",null,null,"Date"]
["1x Angoph costata & 4x Ecyp adjacent to plot.",null,null,null,null,null,"Checked by"]
[null,null,null,null,null,null,"Entered by"]

{"sheet":"(BB1) 9.5.12","index":8,"n_rows":48,"n_cols":14,"rows_kept":48,"cut":false,"hidden":false,"merged":[[21,6,21,9],[17,6,17,9],[7,0,7,2],[6,5,6,9],[14,6,14,9],[16,6,16,9],[11,0,11,4],[19,6,19,9],[13,6,13,9],[8,0,8,9],[33,6,33,9],[43,0,43,2],[29,6,29,7],[22,6,23,9],[24,6,24,7],[28,6,28,7],[11,8,11,9],[11,6,11,7],[0,0,0,9],[1,0,1,9],[2,0,2,9],[3,0,3,9],[4,0,4,2],[4,8,4,9],[5,0,5,9]]}
["Biolink Ecological Consultants Pty Ltd PO Box 196 Uki NSW 2484 0266726966"]
[" Dept of Environment and Conservation PO Box 656 Merimbula NSW 2548 0264955008"]
["EUROBODALLA PILOT PLOTS KOALA SURVEY 2012"]
["REGULARISED GRID-BASED SPOT ASSESSMENT TECHNIQUE"]
["Site Number_BB1_",null,null,"Recorder_Keith Joliffe_",null,null,null,"Time_1030_","Date_9/5/2012_"]
["Site Location_Actual plot is above Big Belimbla Creek (planned plot at creekside_"]
["_wet gully too difficult to search)_",null,null,null,null,"Site Tenure_Dampier State Forest_"]
["Easting_0753565_",null,null,"Northing_6002182_",null,null,"Datum_UTM 55_",null,"GPS Error_+/- 6 m_"]
["Geology (Granitic, Metasediment or Bassalt?)_Metasediment_"]
["Soil Depth (Hardly Any, Some Depth or Deep Topsoil?)",null,null,null,null,null,"Some Depth"]
["Soil Type (Sandy, Sandy Loam or Loam?)",null,null,null,null,"Loam",null,"Aspect:","Ridgetop_slopes down N&S"]
["Trees recorded clockwise on N bearing from Centre Tree",null,null,null,null,null,"Plot Radius_38 m_",null,"SAT Criteria  3"]
[null,"TSP","DBH","Koala","KFP",null,null,"1haveseenkoala","2haveseenpellets","3gridplot"]
[1,"Ecyp",450,null,null,null,"Groundcover ease of searching"]
[2,"Emue",950,null,null,null,"            Moderate"]
[3,"Ecyp",720]
[4,"Ecyp",290,null,null,null,"Koala information"]
[5,"Emue",300,null,null,null,"Pellet Age         Old     Mixed    Fresh"]
[6,"E.piperita?",940,"Or Box?",null,null,"A/level______/_______=_______%",null,null,"ie pell/trees"]
[7,"Blueberry Ash",300,"Elae. reticulatis",null,null,"Comments"]
[8,"Ecyp",730]
[9,"Blueberry Ash",430,"Elae. reticulatis",null,null,"Information about other Fauna"]
[10,"Ecyp",700,null,null,null,"Nature of Observation                                                P: Pellets, D: Digs, O: Observ, N: Nest, C: Call, M: Mound"]
[11,"Blueberry Ash",240,"Elae. reticulatis"]
[12,"Emue",280,null,null,null,"Wallaby",null,"BT Possum"]
[13,"Ecyp",310,null,null,null,"EG Kangaroo",null,"RT Possum"]
[14,"Cedar?",410,"Or B'berry Ash?",null,null,"LN Bandicoot",null,"YB Glider"]
[15,"Ecyp",810,null,null,null,"LN Potoroo",null,"Lyrebird C"]
[16,"Acacia",290,null,null,null,"Wombat P",null,"Bell minor"]
[17,"Acacia",170,null,null,null,"Rabbit",null,"Deer"]
[18,"Emue",400,null,null,null,"G.Glider",null,"Other"]
[19,"Ecyp",430,null,null,null,"No of  Bandi/Potoroo digs within 5m of CT"]
[20,"Ecyp",800,null,null,null,"Unsure? -","Use","Comments"]
[21,"E.piperita?",630,"Or Box?",null,null,"Team Members"]
[22,"Ecyp",950,null,null,null,"Bob","Rob","John Cl",null,null,null,null,"`"]
[23,"Emue",430,null,null,null,"Keith"]
[24,"Ecyp",410]
[25,"Ecyp",300]
[26,"Ecyp",250,null,null,null,"Transect"]
[27,"Ecyp",1050,null,null,null,null,"Time","Eastings","Northings"]
[28,"E.piperita?",610,"Or Box?",null,null,"Start"]
[29,"Ecyp",760,null,null,null,"Finish"]
[30,"Ecyp",570,null,null,null,"Pellet sites"]
["OTHER COMMENTS",null,null,null,null,null,"Pellet sites"]
["incl","Unsure TSP","Veg type #18 on Derived CRA map (Sthn Cstl Hintlnd moist shrub/vine/grass forest)."]
["Wallaby P nearby (under ferns in creek).",null,null,null,null,null,"Data Entry Information",null,null,"Date"]
["Lots of scratches - mostly on Stringys.",null,null,null,null,null,"Checked by"]
["Multiple digs under trees - probably Wombat.",null,null,null,null,null,"Entered by"]

{"sheet":"(TW8) 16.5.12","index":9,"n_rows":48,"n_cols":10,"rows_kept":48,"cut":false,"hidden":false,"merged":[[21,6,21,9],[17,6,17,9],[7,0,7,2],[6,5,6,9],[14,6,14,9],[16,6,16,9],[11,0,11,4],[19,6,19,9],[13,6,13,9],[8,0,8,9],[33,6,33,9],[43,0,43,2],[29,6,29,7],[22,6,23,9],[24,6,24,7],[28,6,28,7],[11,8,11,9],[11,6,11,7],[0,0,0,9],[1,0,1,9],[2,0,2,9],[3,0,3,9],[4,0,4,2],[4,8,4,9],[5,0,5,9]]}
["Biolink Ecological Consultants Pty Ltd PO Box 196 Uki NSW 2484 0266726966"]
[" Dept of Environment and Conservation PO Box 656 Merimbula NSW 2548 0264955008"]
["TINPOT KOALA SURVEY 2012"]
["REGULARISED GRID-BASED SPOT ASSESSMENT TECHNIQUE"]
["Site Number_TW8_",null,null,"Recorder_Keith Joliffe_",null,null,null,"Time_1015_","Date_16/5/12_"]
["Site Location_Tinpot Road (Wandella map)_"]
["______________________________________________________",null,null,null,null,"Site Tenure_Kooraban National Park?_"]
["Easting_0759072_",null,null,"Northing_5983910_",null,null,"Datum_UTM 55_",null,"GPS Error_+/- 5 m_"]
["Geology (Granitic, Metasediment or Bassalt?)_Metasediment_"]
["Soil Depth (Hardly Any, Some Depth or Deep Topsoil?)",null,null,null,null,null,"Some Depth"]
["Soil Type (Sandy, Sandy Loam or Loam?)",null,null,null,null,"Loam",null,"Aspect:","Slopes steeply down to Nth"]
["Trees recorded clockwise on N bearing from Centre Tree",null,null,null,null,null,"Plot Radius_17.4 m_",null,"SAT Criteria  3"]
[null,"TSP","DBH","Koala","KFP",null,null,"1haveseenkoala","2haveseenpellets","3gridplot"]
[1,"Emue",540,null,null,null,"Groundcover ease of searching"]
[2,"Emue",200,null,null,null,"Easy"]
[3,"Ebos",380]
[4,"Ebos",390,null,null,null,"Koala information"]
[5,"angflo",250,null,null,null,"Pellet Age         Old     Mixed    Fresh"]
[6,"Emue",540,null,null,null,"A/level______/_______=_______%",null,null,"ie pell/trees"]
[7,"Ebos",290,null,null,null,"Comments"]
[8,"Ebos",210]
[9,"Ebos",220,null,null,null,"Information about other Fauna"]
[10,"Emue",260,null,null,null,"Nature of Observation                                                P: Pellets, D: Digs, O: Observ, N: Nest, C: Call, M: Mound"]
[11,"Ebos",230]
[12,"Ebos",510,null,null,null,"Wallaby",null,"BT Possum"]
[13,"Emue","380 x2",null,null,null,"EG Kangaroo",null,"RT Possum"]
[14,"Ebos",220,null,null,null,"LN Bandicoot",null,"YB Glider"]
[15,"Emue","570 x2",null,null,null,"LN Potoroo",null,"Lyrebird C"]
[16,"Emue",800,null,null,null,"Wombat P",null,"Bell minor"]
[17,"Emue",250,null,null,null,"Rabbit",null,"Deer"]
[18,"Emue","410 x2",null,null,null,"G.Glider",null,"Other"]
[19,"Emue",390,null,null,null,"No of  Bandi/Potoroo digs within 5m of CT"]
[20,"Emue",280,null,null,null,"Unsure? -","Use","Comments"]
[21,"Emue",380,null,null,null,"Team Members"]
[22,"Emue","550 x2",null,null,null,"Bob","Rob","Keith"]
[23,"Ebos",390]
[24,"Emue",590]
[25,"Ebos",390]
[26,"Emue",280,null,null,null,"Transect"]
[27,"Ebos",240,null,null,null,null,"Time","Eastings","Northings"]
[28,"Ebos",635,null,null,null,"Start"]
[29,"Ebos",350,null,null,null,"Finish"]
[30,"Emue",390,null,null,null,"Pellet sites"]
["OTHER COMMENTS",null,null,null,null,null,"Pellet sites"]
["incl","Unsure TSP","Fruits (and scats found in nearby creek) bagged"]
["Previous fire.",null,null,null,null,null,"Data Entry Information",null,null,"Date"]
["Some distressed trees; difficult ID (spongy bark - Box?).",null,null,null,null,null,"Checked by"]
["Large Mtn Grey Gum adjacent to plot.",null,null,null,null,null,"Entered by"]

{"sheet":"(TW9) 16.5.12","index":10,"n_rows":48,"n_cols":10,"rows_kept":48,"cut":false,"hidden":false,"merged":[[21,6,21,9],[17,6,17,9],[7,0,7,2],[6,5,6,9],[14,6,14,9],[16,6,16,9],[11,0,11,4],[19,6,19,9],[13,6,13,9],[8,0,8,9],[33,6,33,9],[43,0,43,2],[29,6,29,7],[22,6,23,9],[24,6,24,7],[28,6,28,7],[11,8,11,9],[11,6,11,7],[0,0,0,9],[1,0,1,9],[2,0,2,9],[3,0,3,9],[4,0,4,2],[4,8,4,9],[5,0,5,9]]}
["Biolink Ecological Consultants Pty Ltd PO Box 196 Uki NSW 2484 0266726966"]
[" Dept of Environment and Conservation PO Box 656 Merimbula NSW 2548 0264955008"]
["TINPOT KOALA SURVEY 2012"]
["REGULARISED GRID-BASED SPOT ASSESSMENT TECHNIQUE"]
["Site Number_TW9_",null,null,"Recorder_Keith Joliffe_",null,null,null,"Time_1330_","Date_16/5/12_"]
["Site Location_Tinpot Road near Jeffers Road intersection (Wandella map)_"]
["______________________________________________________",null,null,null,null,"Site Tenure_Kooraban National Park?_"]
["Easting_0757138_",null,null,"Northing_5982403_",null,null,"Datum_UTM 55_",null,"GPS Error_+/- 8 m_"]
["Geology (Granitic, Metasediment or Bassalt?)_Metasediment_"]
["Soil Depth (Hardly Any, Some Depth or Deep Topsoil?)",null,null,null,null,null,"Some Depth",null,"Nth-running ridgetop; slopes"]
["Soil Type (Sandy, Sandy Loam or Loam?)",null,null,null,null,"Loam",null,"Aspect:","to both sides - N/W & S/E"]
["Trees recorded clockwise on N bearing from Centre Tree",null,null,null,null,null,"Plot Radius_22.5 m_",null,"SAT Criteria  3"]
[null,"TSP","DBH","Koala","KFP",null,null,"1haveseenkoala","2haveseenpellets","3gridplot"]
[1,"Esie",1090,null,null,null,"Groundcover ease of searching"]
[2,"Esie",350,null,null,null,"Easy"]
[3,"Esie",340]
[4,"Esie",490,null,null,null,"Koala information"]
[5,"Esie",170,null,null,null,"Pellet Age         Old     Mixed    Fresh"]
[6,"Esie",200,null,null,null,"A/level______/_______=_______%",null,null,"ie pell/trees"]
[7,"Esie",300,null,null,null,"Comments"]
[8,"Esie",180]
[9,"Esie",160,null,null,null,"Information about other Fauna"]
[10,"Esie",370,null,null,null,"Nature of Observation                                                P: Pellets, D: Digs, O: Observ, N: Nest, C: Call, M: Mound"]
[11,"Esie",240]
[12,"Esie",180,null,null,null,"Wallaby",null,"BT Possum"]
[13,"Ebos","460 x3",null,null,null,"EG Kangaroo",null,"RT Possum"]
[14,"Esie",500,null,null,null,"LN Bandicoot",null,"YB Glider"]
[15,"Esie",410,null,null,null,"LN Potoroo",null,"Lyrebird C"]
[16,"Esie",950,null,null,null,"Wombat",null,"Bell minor"]
[17,"Eagg",850,null,null,null,"Rabbit",null,"Deer"]
[18,"Eagg",400,null,null,null,"G.Glider",null,"Other"]
[19,"Eagg",590,null,null,null,"No of  Bandi/Potoroo digs within 5m of CT"]
[20,"Eagg",370,null,null,null,"Unsure? -","Use","Comments"]
[21,"Eagg",750,null,null,null,"Team Members"]
[22,"Eagg",390,null,null,null,"Bob","Rob","Keith"]
[23,"Ebos",250]
[24,"Ebos",330]
[25,"Esie",790]
[26,"Esie",345,null,null,null,"Transect"]
[27,"Esie",345,null,null,null,null,"Time","Eastings","Northings"]
[28,"Esie",340,null,null,null,"Start"]
[29,"Esie",230,null,null,null,"Finish"]
[30,"Esie",360,null,null,null,"Pellet sites"]
["OTHER COMMENTS",null,null,null,null,null,"Pellet sites"]
["incl","Unsure TSP"]
["Unidentified dig/mound.",null,null,null,null,null,"Data Entry Information",null,null,"Date"]
["Lightweight steel post on plot - some sort of",null,null,null,null,null,"Checked by"]
["boundary marker?",null,null,null,null,null,"Entered by"]

{"sheet":"(TW10) 23.5.12","index":11,"n_rows":48,"n_cols":17,"rows_kept":48,"cut":false,"hidden":false,"merged":[[21,6,21,9],[17,6,17,9],[7,0,7,2],[6,5,6,9],[14,6,14,9],[16,6,16,9],[11,0,11,4],[19,6,19,9],[13,6,13,9],[8,0,8,9],[33,6,33,9],[43,0,43,2],[29,6,29,7],[22,6,23,9],[24,6,24,7],[28,6,28,7],[11,8,11,9],[11,6,11,7],[0,0,0,9],[1,0,1,9],[2,0,2,9],[3,0,3,9],[4,0,4,2],[4,8,4,9],[5,0,5,9]]}
["Biolink Ecological Consultants Pty Ltd PO Box 196 Uki NSW 2484 0266726966"]
[" Dept of Environment and Conservation PO Box 656 Merimbula NSW 2548 0264955008"]
["TINPOT KOALA SURVEY 2012"]
["REGULARISED GRID-BASED SPOT ASSESSMENT TECHNIQUE"]
["Site Number_TW10_",null,null,"Recorder_Kahli Beissner_",null,null,null,"Time_1030_","Date_23/5/2012_"]
["Site Location_South of Tinpot overlooking Wandella Creek off Red Creek Road Wandella map_"]
["______________________________________________________",null,null,null,null,"Site Tenure_Kooraban National Park_"]
["Easting_0756059_",null,null,"Northing_5984147_",null,null,"Datum_UTM 55_",null,"GPS Error_+/- 6m_"]
["Geology (Granitic, Metasediment or Bassalt?)_Metasediment_"]
["Soil Depth (Hardly Any, Some Depth or Deep Topsoil?)",null,null,null,null,null,"Some depth"]
["Soil Type (Sandy, Sandy Loam or Loam?)",null,null,null,null,"Loam",null,"Aspect:","Slopes down to South"]
["Trees recorded clockwise on N bearing from Centre Tree",null,null,null,null,null,"Plot Radius_27.5 m_",null,"SAT Criteria  3"]
[null,"TSP","DBH","Koala","KFP",null,null,"1haveseenkoala","2haveseenpellets","3gridplot"]
[1,"Esie",380,null,null,null,"Groundcover ease of searching"]
[2,"Eagg",550,null,null,null,"Easy"]
[3,"Eagg",600]
[4,"Esie",330,null,null,null,"Koala information"]
[5,"Esie",560,null,null,null,"Pellet Age         Old     Mixed    Fresh"]
[6,"Etri","990 x2",null,null,null,"A/level______/_______=_______%",null,null,"ie pell/trees"]
[7,"Eagg",480,null,null,null,"Comments"]
[8,"Eagg",700]
[9,"Etri",170,null,null,null,"Information about other Fauna"]
[10,"Esie",410,null,null,null,"Nature of Observation                                                P: Pellets, D: Digs, O: Observ, N: Nest, C: Call, M: Mound"]
[11,"Etri",190]
[12,"Eagg",520,null,null,null,"Wallaby P",null,"BT Possum"]
[13,"Esie",500,null,null,null,"EG Kangaroo P",null,"RT Possum"]
[14,"Esie",360,null,null,null,"LN Bandicoot",null,"YB Glider"]
[15,"Esie",350,null,null,null,"LN Potoroo",null,"Lyrebird"]
[16,"Etri",420,null,null,null,"Wombat",null,"Bell minor"]
[17,"Esie","550 x2",null,null,null,"Rabbit",null,"Deer"]
[18,"Etri",300,null,null,null,"G.Glider",null,"Other"]
[19,"Esie",160,null,null,null,"No of  Bandi/Potoroo digs within 5m of CT"]
[20,"Eagg",330,null,null,null,"Unsure? -","Chewed gumnuts - parrots?"]
[21,"Eagg","720 x2",null,null,null,"Team Members"]
[22,"Eagg",620,null,null,null,"Rob","Bob","John Cl","Kahli"]
[23,"Esie",590,null,null,null,"Keith"]
[24,"Esie",280]
[25,"Esie",220]
[26,"Esie",400,null,null,null,"Transect"]
[27,"Esie",320,null,null,null,null,"Time","Eastings","Northings"]
[28,"Esie",350,null,null,null,"Start"]
[29,"Esie",450,null,null,null,"Finish"]
[30,"Eagg",310,null,null,null,"Pellet sites"]
["OTHER COMMENTS",null,null,null,null,null,"Pellet sites",null,null,null,null,null,null,null,null,null,"  "]
["incl","Unsure TSP"]
["History of fire; not recent; hot.",null,null,null,null,null,"Data Entry Information",null,null,"Date"]
["Previous heavy disturbance (incl. logging); distressed &",null,null,null,null,null,"Checked by"]
["dead trees. ",null,"Casuarina & acacia regrowth.",null,null,null,"Entered by"]

{"sheet":"(T11) 30.5.12","index":12,"n_rows":48,"n_cols":10,"rows_kept":48,"cut":false,"hidden":false,"merged":[[11,8,11,9],[11,6,11,7],[0,0,0,9],[1,0,1,9],[2,0,2,9],[3,0,3,9],[4,0,4,2],[4,8,4,9],[5,0,5,9],[33,6,33,9],[43,0,43,2],[29,6,29,7],[22,6,23,9],[24,6,24,7],[28,6,28,7],[21,6,21,9],[17,6,17,9],[7,0,7,2],[6,5,6,9],[14,6,14,9],[16,6,16,9],[11,0,11,4],[19,6,19,9],[13,6,13,9],[8,0,8,9]]}
["Biolink Ecological Consultants Pty Ltd PO Box 196 Uki NSW 2484 0266726966"]
[" Dept of Environment and Conservation PO Box 656 Merimbula NSW 2548 0264955008"]
["TINPOT KOALA SURVEY 2012"]
["REGULARISED GRID-BASED SPOT ASSESSMENT TECHNIQUE"]
["Site Number_T 11_",null,null,"Recorder_Kahli Beissner_",null,null,null,"Time_1030_","Date_30/5/2012_"]
["Site Location_Cnr Red Creek & Recoil Rds, south of Tinpot_"]
["______________________________________________________",null,null,null,null,"Site Tenure_Kooraban National Park_"]
["Easting_0755603_",null,null,"Northing_5986037_",null,null,"Datum_UTM 55_",null,"GPS Error_+/- 6m_"]
["Geology (Granitic, Metasediment or Bassalt?)_Metasediment_"]
["Soil Depth (Hardly Any, Some Depth or Deep Topsoil?)",null,null,null,null,null,"Some Depth"]
["Soil Type (Sandy, Sandy Loam or Loam?)",null,null,null,null,"Loam",null,"Aspect:","Steep slope down to North"]
["Trees recorded clockwise on N bearing from Centre Tree",null,null,null,null,null,"Plot Radius_29.5 m_",null,"SAT Criteria  3"]
[null,"TSP","DBH","Koala","KFP",null,null,"1haveseenkoala","2haveseenpellets","3gridplot"]
[1,"Eglo",580,null,null,null,"Groundcover ease of searching"]
[2,"Eagg",360,null,null,null,"Easy"]
[3,"Ecyp",600]
[4,"Eglo",540,null,null,null,"Koala information"]
[5,"Eglo",500,null,null,null,"Pellet Age         Old     Mixed    Fresh"]
[6,"Eglo",630,null,null,null,"A/level______/_______=_______%",null,null,"ie pell/trees"]
[7,"Ecyp",450,null,null,null,"Comments"]
[8,"Ecyp",640]
[9,"Etri",200,null,null,null,"Information about other Fauna"]
[10,"Etri",370,null,null,null,"Nature of Observation                                                P: Pellets, D: Digs, O: Observ, N: Nest, C: Call, M: Mound"]
[11,"Eglo",490]
[12,"Etri",230,null,null,null,"Wallaby P D",null,"BT Possum P & bark scr"]
[13,"Etri",370,null,null,null,"EG Kangaroo",null,"RT Possum"]
[14,"Ecyp",630,null,null,null,"LN Bandicoot",null,"YB Glider"]
[15,"Eglo",730,null,null,null,"LN Potoroo",null,"Lyrebird C"]
[16,"Ecyp",710,null,null,null,"Wombat",null,"Bell minor"]
[17,"Acas",190,null,null,null,"Rabbit",null,"Deer"]
[18,"Esie",240,null,null,null,"G.Glider",null,"Other"]
[19,"Etri",500,null,null,null,"No of  Bandi/Potoroo digs within 5m of CT"]
[20,"Esie",930,null,null,null,"Unsure? -","Use","Comments"]
[21,"Esie",240,null,null,null,"Team Members"]
[22,"Ebos",490,null,null,null,"Rob","Bob","John Cl","Kahli"]
[23,"Eglo",740,null,null,null,"Keith"]
[24,"Etri",290]
[25,"Eagg",390]
[26,"Ecyp",590,null,null,null,"Transect"]
[27,"Ebos",470,null,null,null,null,"Time","Eastings","Northings"]
[28,"Ebos",390,null,null,null,"Start"]
[29,"Eagg",650,null,null,null,"Finish"]
[30,"Ebos",330,null,null,null,"Pellet sites"]
["OTHER COMMENTS",null,null,null,null,null,"Pellet sites"]
["incl","Unsure TSP","(Fr. Bagged)","Mingled fruits. Distressed trees.",null,null,"Bark scratches - possum?"]
["Unsure scats (Tree 15) saved: BT poss, RT poss, YB gl. or koala?",null,null,null,null,null,"Data Entry Information",null,null,"Date"]
["Disturbance: previous fire, logging & adjacent roadwork.",null,null,null,null,null,"Checked by"]
["Challenging euc ID: fruits & barks not totally matching book",null,null,null,null,null,"Entered by"]

{"sheet":"(T4) 12.9.12","index":13,"n_rows":48,"n_cols":10,"rows_kept":48,"cut":false,"hidden":false,"merged":[[21,6,21,9],[17,6,17,9],[7,0,7,2],[6,5,6,9],[14,6,14,9],[16,6,16,9],[11,0,11,4],[19,6,19,9],[13,6,13,9],[8,0,8,9],[33,6,33,9],[43,0,43,2],[29,6,29,7],[22,6,23,9],[24,6,24,7],[28,6,28,7],[11,8,11,9],[11,6,11,7],[0,0,0,9],[1,0,1,9],[2,0,2,9],[3,0,3,9],[4,0,4,2],[4,8,4,9],[5,0,5,9]]}
["Biolink Ecological Consultants Pty Ltd PO Box 196 Uki NSW 2484 0266726966"]
[" Dept of Environment and Conservation PO Box 656 Merimbula NSW 2548 0264955008"]
["TINPOT KOALA SURVEY 2012"]
["REGULARISED GRID-BASED SPOT ASSESSMENT TECHNIQUE"]
["Site Number_T4_",null,null,"Recorder_Keith Joliffe_",null,null,null,"Time_1100_","Date_12/9/2012_"]
["Site Location_Preserve Road, Tinpot_"]
["______________________________________________________",null,null,null,null,"Site Tenure_Kooraban NP adjacent to Private Land_"]
["Easting_0754488_",null,null,"Northing_5988410_",null,null,"Datum_UTM 55_",null,"GPS Error_+/- 6m_"]
["Geology (Granitic, Metasediment or Bassalt?)_Metasediment_"]
["Soil Depth (Hardly Any, Some Depth or Deep Topsoil?)",null,null,null,null,null,"Some Depth"]
["Soil Type (Sandy, Sandy Loam or Loam?)",null,null,null,null,"Loam",null,"Aspect:","Slopes down to West"]
["Trees recorded clockwise on N bearing from Centre Tree",null,null,null,null,null,"Plot Radius_22.2 m_",null,"SAT Criteria  3"]
[null,"TSP","DBH","Koala","KFP",null,null,"1haveseenkoala","2haveseenpellets","3gridplot"]
[1,"Esie",510,null,null,null,"Groundcover ease of searching"]
[2,"Eglo",400,null,null,null,"Easy"]
[3,"Eang",240]
[4,"Eang",215,null,null,null,"Koala information"]
[5,"Eang",330,null,null,null,"Pellet Age         Old"]
[6,"Eang",262,null,null,null,"A/level_3_/_30_=_10_%",null,null,"ie pell/trees"]
[7,"Eglo",370,null,null,null,"Comments Unsure ID_scats TBC"]
[8,"Eglo",420]
[9,"Eglo",495,null,"TBC",null,"Information about other Fauna"]
[10,"Eang",310,null,null,null,"Nature of Observation                                                P: Pellets, D: Digs, O: Observ, N: Nest, C: Call, M: Mound"]
[11,"Eang",305]
[12,"Eglo",350,null,null,null,"Wallaby P",null,"BT Possum P"]
[13,"Eang",325,null,null,null,"EG Kangaroo",null,"RT Possum"]
[14,"Eglo",610,null,null,null,"LN Bandicoot",null,"YB Glider"]
[15,"Esie",390,null,null,null,"LN Potoroo",null,"Lyrebird"]
[16,"Eglo",506,null,null,null,"Wombat P",null,"Bell minor"]
[17,"Eglo",480,null,null,null,"Rabbit",null,"Deer"]
[18,"Eglo",440,null,null,null,"G.Glider",null,"Other"]
[19,"Esie",454,null,null,null,"No of  Bandi/Potoroo digs within 5m of CT"]
[20,"Eang",255,null,"TBC",null,"Unsure? -","Use","Comments"]
[21,"Eglo",430,null,null,null,"Team Members"]
[22,"Eglo",355,null,null,null,"Keith"]
[23,"Eang",211,null,null,null,"Rob"]
[24,"Eglo",438,null,null,null,"Tracey"]
[25,"Esie",630,null,null,null,"Daniel"]
[26,"Eang",295,null,"TBC",null,"Transect"]
[27,"Eglo",240,null,null,null,null,"Time","Eastings","Northings"]
[28,"Eglo",329,null,null,null,"Start"]
[29,"Esie",650,null,null,null,"Finish"]
[30,"Eang",255,null,null,null,"Pellet sites"]
["OTHER COMMENTS",null,null,null,null,null,"Pellet sites"]
["incl","Unsure TSP"]
["Scratches on Eang's_photographed (scats TBC);",null,null,null,null,null,"Data Entry Information",null,null,"Date"]
["Other larger Eang's close to plot had same scratches",null,null,null,null,null,"Checked by"]
["and scats.",null,null,null,null,null,"Entered by"]

{"sheet":"(M1) 19.9.12","index":14,"n_rows":48,"n_cols":10,"rows_kept":48,"cut":false,"hidden":false,"merged":[[21,6,21,9],[17,6,17,9],[7,0,7,2],[6,5,6,9],[14,6,14,9],[16,6,16,9],[11,0,11,4],[19,6,19,9],[13,6,13,9],[8,0,8,9],[33,6,33,9],[43,0,43,2],[29,6,29,7],[22,6,23,9],[24,6,24,7],[28,6,28,7],[11,8,11,9],[11,6,11,7],[0,0,0,9],[1,0,1,9],[2,0,2,9],[3,0,3,9],[4,0,4,2],[4,8,4,9],[5,0,5,9]]}
["Biolink Ecological Consultants Pty Ltd PO Box 196 Uki NSW 2484 0266726966"]
[" Dept of Environment and Conservation PO Box 656 Merimbula NSW 2548 0264955008"]
["EUROBODALLA PILOT PLOTS KOALA SURVEY 2012"]
["REGULARISED GRID-BASED SPOT ASSESSMENT TECHNIQUE"]
["Site Number_M1_",null,null,"Recorder_Sophie Hall-Aspland_",null,null,null,"Time_1150_","Date_19/9/12_"]
["Site Location_Fox Gully Road & Dwyers Creek Road Intersection south west of Moruya_"]
["______________________________________________________",null,null,null,null,"Site Tenure_Deua NP adjacent to Moruya SF_"]
["Easting_0232012_",null,null,"Northing_6012588_",null,null,"Datum_UTM 55_",null,"GPS Error_+/- 11m_"]
["Geology (Granitic, Metasediment or Bassalt?)_Metasediment_"]
["Soil Depth (Hardly Any, Some Depth or Deep Topsoil?)",null,null,null,null,null,"Some depth"]
["Soil Type (Sandy, Sandy Loam or Loam?)",null,null,null,null,"Sandy loam",null,"Aspect:","Slopes down to South"]
["Trees recorded clockwise on N bearing from Centre Tree",null,null,null,null,null,"Plot Radius_14.6 m_",null,"SAT Criteria  3"]
[null,"TSP","DBH","Koala","KFP",null,null,"1haveseenkoala","2haveseenpellets","3gridplot"]
[1,"Ebos? Or Elon?",830,null,null,null,"Groundcover ease of searching"]
[2,"Etri",395,null,null,null,"Moderate"]
[3,"Ebos? Or Elon?",160]
[4,"Eglo",267,null,null,null,"Koala information"]
[5,"Ebos? Or Elon?",370,null,null,null,"Pellet Age         Old     Mixed    Fresh"]
[6,"Epan",205,null,null,null,"A/level______/_______=_______%",null,null,"ie pell/trees"]
[7,"Eglo",365,null,null,null,"Comments"]
[8,"Ebos? Or Elon?",470]
[9,"Ebos? Or Elon?",155,null,null,null,"Information about other Fauna"]
[10,"Ebos? Or Elon?",425,null,null,null,"Nature of Observation                                                P: Pellets, D: Digs, O: Observ, N: Nest, C: Call, M: Mound"]
[11,"Ebos? Or Elon?",480]
[12,"Emue",612,null,null,null,"Wallaby P",null,"BT Possum"]
[13,"Ebos? Or Elon?",682,null,null,null,"EG Kangaroo",null,"RT Possum"]
[14,"Ebos? Or Elon?",725,null,null,null,"LN Bandicoot",null,"YB Glider"]
[15,"Eang",366,null,null,null,"LN Potoroo",null,"Lyrebird"]
[16,"Eglo",490,null,null,null,"Wombat",null,"Bell minor"]
[17,"Eglo",350,null,null,null,"Rabbit",null,"Deer"]
[18,"Eglo",310,null,null,null,"G.Glider","Other: Mustard-bellied snake (juv)_correction"]
[19,"Ebos? Or Elon?",240,null,null,null,"No of  Bandi/Potoroo digs within 5m of CT"]
[20,"Eglo",313,null,null,null,"Unsure? -","Use","Comments"]
[21,"Ebos? Or Elon?",270,null,null,null,"Team Members"]
[22,"Ebos? Or Elon?",625,null,null,null,"Daniel"]
[23,"Eglo",239,null,null,null,"Kahli"]
[24,"Ebos? Or Elon?",222,null,null,null,"Sophie"]
[25,"Emac Cmac",153,null,null,null,"Keith"]
[26,"Eang",300,null,null,null,"Transect"]
[27,"Eglo",215,null,null,null,null,"Time","Eastings","Northings"]
[28,"Ebos? Or Elon?",500,null,null,null,"Start"]
[29,"Ebos? Or Elon?",187,null,null,null,"Finish"]
[30,"Ebos? Or Elon?",295,null,null,null,"Pellet sites"]
["OTHER COMMENTS",null,null,null,null,null,"Pellet sites"]
["incl","Unsure TSP",null,"Millipedes."]
["Geebung & Spiny mintbush. Some fire history.",null,null,null,null,null,"Data Entry Information",null,null,"Date"]
["Difficulty with ID of one euc - Ebos, Epil or Elon?",null,null,null,null,null,"Checked by"]
["Distressed trees out of fruiting season. Mingled nuts.",null,null,null,null,null,"Entered by"]

{"sheet":"(M2) 19.9.12","index":15,"n_rows":58,"n_cols":10,"rows_kept":58,"cut":false,"hidden":false,"merged":[[21,6,21,9],[17,6,17,9],[7,0,7,2],[6,5,6,9],[14,6,14,9],[16,6,16,9],[11,0,11,4],[19,6,19,9],[13,6,13,9],[8,0,8,9],[33,6,33,9],[43,0,43,2],[29,6,29,7],[22,6,23,9],[24,6,24,7],[28,6,28,7],[11,8,11,9],[11,6,11,7],[0,0,0,9],[1,0,1,9],[2,0,2,9],[3,0,3,9],[4,0,4,2],[4,8,4,9],[5,0,5,9]]}
["Biolink Ecological Consultants Pty Ltd PO Box 196 Uki NSW 2484 0266726966"]
[" Dept of Environment and Conservation PO Box 656 Merimbula NSW 2548 0264955008"]
["EUROBODALLA PILOT PLOTS KOALA SURVEY 2012"]
["REGULARISED GRID-BASED SPOT ASSESSMENT TECHNIQUE"]
["Site Number_M2_",null,null,"Recorder_Sophie Hall-Aspland_",null,null,null,"Time_0944_","Date_19/9/12_"]
["Site Location_Dwyers Creek Road south west of Moruya_"]
["______________________________________________________",null,null,null,null,"Site Tenure_Vacant Crown Land_"]
["Easting_0233687_",null,null,"Northing_6015206_",null,null,"Datum_UTM 55_",null,"GPS Error_+/- 12m_"]
["Geology (Granitic, Metasediment or Bassalt?)_Metasediment_"]
["Soil Depth (Hardly Any, Some Depth or Deep Topsoil?)",null,null,null,null,null,"Some depth"]
["Soil Type (Sandy, Sandy Loam or Loam?)",null,null,null,null,"Sandy Loam",null,"Aspect:","Slopes down to South"]
["Trees recorded clockwise on N bearing from Centre Tree",null,null,null,null,null,"Plot Radius_20 m_",null,"SAT Criteria  3"]
[null,"TSP","DBH","Koala","KFP",null,null,"1haveseenkoala","2haveseenpellets","3gridplot"]
[1,"Epan",670,null,null,null,"Groundcover ease of searching"]
[2,"Eeug",170,null,null,null,"Easy"]
[3,"Ebos",235]
[4,"Eglo","520 x2",null,null,null,"Koala information"]
[5,"Ebos",374,null,null,null,"Pellet Age         Old     Mixed    Fresh"]
[6,"Ebos",295,null,null,null,"A/level______/_______=_______%",null,null,"ie pell/trees"]
[7,"Ebos",225,null,null,null,"Comments"]
[8,"Ebos",205]
[9,"Ebos",315,null,null,null,"Information about other Fauna"]
[10,"Epan",285,null,null,null,"Nature of Observation                                                P: Pellets, D: Digs, O: Observ, N: Nest, C: Call, M: Mound"]
[11,"Epan",257]
[12,"Epan",720,null,null,null,"Wallaby P",null,"BT Possum"]
[13,"Ebos",185,null,null,null,"EG Kangaroo",null,"RT Possum"]
[14,"Epan",335,null,null,null,"LN Bandicoot",null,"YB Glider"]
[15,"Epan",198,null,null,null,"LN Potoroo",null,"Lyrebird"]
[16,"Epan",680,null,null,null,"Wombat P",null,"Bell minor"]
[17,"Epan",245,null,null,null,"Rabbit",null,"Deer"]
[18,"Epan",665,null,null,null,"G.Glider",null,"Other:","Cow P"]
[19,"Epan",640,null,null,null,"No of  Bandi/Potoroo digs within 5m of CT"]
[20,"Epan","418 x3",null,null,null,"Unsure? -","Use","Comments"]
[21,"Eglo",185,null,null,null,"Team Members"]
[22,"Epan",665,null,null,null,"Sophie"]
[23,"Eglo",415,null,null,null,"Kahli"]
[24,"Epan",205,null,null,null,"Daniel"]
[25,"Ebos",230,null,null,null,"Keith"]
[26,"Ebos",295,null,null,null,"Transect"]
[27,"Eeug",300,null,null,null,null,"Time","Eastings","Northings"]
[28,"Ebos",160,null,null,null,"Start"]
[29,"Ebos",150,null,null,null,"Finish"]
[30,"Epan",320,null,null,null,"Pellet sites"]
["OTHER COMMENTS",null,null,null,null,null,"Pellet sites"]
["incl","Unsure TSP","Evidence of previous bushfire."]
["Easy searching on top of ridge.",null,null,null,null,null,"Data Entry Information",null,null,"Date"]
["Burrawangs in forest.",null,null,null,null,null,"Checked by"]
["Multiple Angophora costata near plot.",null,null,null,null,null,"Entered by"]
[]
[]
[]
[]
[]
[]
[]
[]
[]
[null,null,null,null,null,null,null," "]

{"sheet":"(BQ1) 26.9.12","index":16,"n_rows":48,"n_cols":10,"rows_kept":48,"cut":false,"hidden":false,"merged":[[19,6,19,9],[13,6,13,9],[8,0,8,9],[17,6,17,9],[7,0,7,2],[6,5,6,9],[14,6,14,9],[16,6,16,9],[11,0,11,4],[11,8,11,9],[33,6,33,9],[43,0,43,2],[22,6,23,9],[24,6,24,7],[28,6,28,7],[21,6,21,9],[11,6,11,7],[0,0,0,9],[1,0,1,9],[2,0,2,9],[3,0,3,9],[4,0,4,2],[4,8,4,9],[5,0,5,9]]}
["Biolink Ecological Consultants Pty Ltd PO Box 196 Uki NSW 2484 0266726966"]
[" Dept of Environment and Conservation PO Box 656 Merimbula NSW 2548 0264955008"]
["EUROBODALLA PILOT PLOTS KOALA SURVEY 2012"]
["REGULARISED GRID-BASED SPOT ASSESSMENT TECHNIQUE"]
["Site Number_BQ1_",null,null,"Recorder_Keith Joliffe_",null,null,null,"Time_0930_","Date_26/9/2012_"]
["Site Location_Buckenbowra Road and Quart Pot Road high ridge West of Mogo_"]
["_South East of Buckenbowra Station_",null,null,null,null,"Site Tenure_Mogo State Forest_"]
["Easting_0234753_",null,null,"Northing_6037574_",null,null,"Datum_UTM 55_",null,"GPS Error_+/- 8m_"]
["Geology (Granitic, Metasediment or Bassalt?)_Metasediment_"]
["Soil Depth (Hardly Any, Some Depth or Deep Topsoil?)",null,null,null,null,null,"Some Depth"]
["Soil Type (Sandy, Sandy Loam or Loam?)",null,null,null,null,"Sandy Loam",null,"Aspect:","Slopes down to East"]
["Trees recorded clockwise on N bearing from Centre Tree",null,null,null,null,null,"Plot Radius_23 m_",null,"SAT Criteria  3"]
[null,"TSP","DBH","Koala","KFP",null,null,"1haveseenkoala","2haveseenpellets","3gridplot"]
[1,"Emac Cmac",685,null,null,null,"Groundcover ease of searching"]
[2,"Etri",600,null,null,null,"Moderate"]
[3,"Etri",547]
[4,"Etri",640,null,null,null,"Koala information"]
[5,"Emac Cmac",200,null,null,null,"Pellet Age         Old     Mixed    Fresh"]
[6,"Emac Cmac",289,null,null,null,"A/level______/_______=_______%",null,null,"ie pell/trees"]
[7,"Eglo",595,null,null,null,"Comments"]
[8,"Emac Cmac",450]
[9,"Emac Cmac","492 x2",null,null,null,"Information about other Fauna"]
[10,"Emac Cmac",900,null,null,null,"Nature of Observation                                                P: Pellets, D: Digs, O: Observ, N: Nest, C: Call, M: Mound"]
[11,"Etri",395]
[12,"Eglo",263,null,null,null,"Wallaby P",null,"BT Possum P"]
[13,"Eglo",290,null,null,null,"EG Kangaroo P",null,"RT Possum"]
[14,"Emac Cmac",320,null,null,null,"LN Bandicoot",null,"YB Glider"]
[15,"Eglo",270,null,null,null,"LN Potoroo",null,"Lyrebird"]
[16,"Emac Cmac",274,null,null,null,"Wombat P",null,"Other Goanna scratch"]
[17,"Eglo",320,null,null,null,"marks, scorpion, hairy caterpillars, small"]
[18,"Emac Cmac",313,null,null,null,"marsupial scat (bagged) Antechinas?"]
[19,"Eglo",225,null,null,null,"No of  Bandi/Potoroo digs within 5m of CT"]
[20,"Emac Cmac",420,null,null,null,"Unsure? -","Use","Comments"]
[21,"Emac Cmac",360,null,null,null,"Team Members"]
[22,"Emac Cmac",395,null,null,null,"Keith","Rob"]
[23,"Etri",240,null,null,null,"Kahli"]
[24,"Eglo",400,null,null,null,"Candace"]
[25,"Emac Cmac",387,null,null,null,"Daniel"]
[26,"Emac Cmac",270,null,null,null,"Transect"]
[27,"Emac Cmac",337,null,null,null,null,"Time","Eastings","Northings"]
[28,"Emac Cmac",645,null,null,null,"Start"]
[29,"Emac Cmac",360,null,null,null,"Finish"]
[30,"Emac Cmac",310,null,null,null,"Pellet sites"]
["OTHER COMMENTS",null,null,null,null,null,"Pellet sites"]
["Strong disturbance, logging, fire, wind, roads, beehives nearby."]
["Burrawangs. Native Sarsaparilla.",null,null,null,null,null,"Data Entry Information",null,null,"Date"]
[null,null,null,null,null,null,"Checked by"]
[null,null,null,null,null,null,"Entered by"]

{"sheet":"(RUN1) 26.9.12","index":17,"n_rows":48,"n_cols":10,"rows_kept":48,"cut":false,"hidden":false,"merged":[[21,6,21,9],[17,6,17,9],[7,0,7,2],[6,5,6,9],[14,6,14,9],[16,6,16,9],[11,0,11,4],[19,6,19,9],[13,6,13,9],[8,0,8,9],[33,6,33,9],[43,0,43,2],[29,6,29,7],[22,6,23,9],[24,6,24,7],[28,6,28,7],[11,8,11,9],[11,6,11,7],[0,0,0,9],[1,0,1,9],[2,0,2,9],[3,0,3,9],[4,0,4,2],[4,8,4,9],[5,0,5,9]]}
["Biolink Ecological Consultants Pty Ltd PO Box 196 Uki NSW 2484 0266726966"]
[" Dept of Environment and Conservation PO Box 656 Merimbula NSW 2548 0264955008"]
["EUROBODALLA PILOT PLOTS KOALA SURVEY 2012"]
["REGULARISED GRID-BASED SPOT ASSESSMENT TECHNIQUE"]
["Site Number_RUN1_",null,null,"Recorder_Keith Joliffe_",null,null,null,"Time_1150_","Date_26/9/2012_"]
["Site Location_Runnyford Road near Mundarlow Creek_"]
["______________________________________________________",null,null,null,null,"Site Tenure_Mogo State Forest_"]
["Easting_0239638_",null,null,"Northing_6043023_",null,null,"Datum_UTM 55_",null,"GPS Error_+/- 6m_"]
["Geology (Granitic, Metasediment or Bassalt?)_Metasediment_"]
["Soil Depth (Hardly Any, Some Depth or Deep Topsoil?)",null,null,null,null,null,"Some Depth"]
["Soil Type (Sandy, Sandy Loam or Loam?)",null,null,null,null,"Sandy Loam",null,"Aspect:","Flat"]
["Trees recorded clockwise on N bearing from Centre Tree",null,null,null,null,null,"Plot Radius_47 m_",null,"SAT Criteria  3"]
[null,"TSP","DBH","Koala","KFP",null,null,"1haveseenkoala","2haveseenpellets","3gridplot"]
[1,"Eteri","1850 x2",null,null,null,"Groundcover ease of searching"]
[2,"Eteri",1030,null,null,null,"Moderate"]
[3,"Eteri",820]
[4,"Eteri",803,null,null,null,"Koala information"]
[5,"Eteri",740,null,null,null,"Pellet Age         Old     Mixed    Fresh"]
[6,"Ebos",270,null,null,null,"A/level______/_______=_______%",null,null,"ie pell/trees"]
[7,"Emac Cmac",560,null,null,null,"Comments"]
[8,"Ebos",630]
[9,"Eteri",620,null,null,null,"Information about other Fauna"]
[10,"Eteri",498,null,null,null,"Nature of Observation                                                P: Pellets, D: Digs, O: Observ, N: Nest, C: Call, M: Mound"]
[11,"Eteri",1033]
[12,"Eteri",500,null,null,null,"Wallaby P",null,"BT Possum P"]
[13,"Eteri",515,null,null,null,"EG Kangaroo P",null,"RT Possum P"]
[14,"Eteri",670,null,null,null,"LN Bandicoot",null,"YB Glider"]
[15,"Angflo",260,null,null,null,"LN Potoroo",null,"Lyrebird"]
[16,"Angflo",303,null,null,null,"Wombat P",null,"Bell minor"]
[17,"Eteri",770,null,null,null,"Rabbit",null,"Deer"]
[18,"Ebos",370,null,null,null,"G.Glider","Other 3x Glossy Black-cockatoo near plot"]
[19,"Eteri",912,null,null,null,"No of  Bandi/Potoroo digs within 5m of CT"]
[20,"Eteri",645,null,null,null,"Unsure? -","Use","Comments"]
[21,"Eteri",1040,null,null,null,"Team Members"]
[22,"Ebos",440,null,null,null,"Keith","Rob"]
[23,"Ebos",180,null,null,null,"Kahli"]
[24,"Eteri",690,null,null,null,"Candace"]
[25,"Angflo",303,null,null,null,"Daniel"]
[26,"Angflo",245,null,null,null,"Transect"]
[27,"Eteri",614,null,null,null,null,"Time","Eastings","Northings"]
[28,"Angflo",202,null,null,null,"Start"]
[29,"Eteri",690,null,null,null,"Finish"]
[30,"Eteri",293,null,null,null,"Pellet sites"]
["OTHER COMMENTS",null,null,null,null,null,"Pellet sites"]
["Large Red Gums with small wattle and casuarina understory."]
["Wide plot both sides of road. Logged stumps from a",null,null,null,null,null,"Data Entry Information",null,null,"Date"]
["long time ago. Nearby Waterfall Creek known historically",null,null,null,null,null,"Checked by"]
["as an alluvial gold site.",null,null,null,null,null,"Entered by"]

{"sheet":"(MERRI!) 3.10.12","index":18,"n_rows":48,"n_cols":10,"rows_kept":48,"cut":false,"hidden":false,"merged":[[21,6,21,9],[17,6,17,9],[7,0,7,2],[6,5,6,9],[14,6,14,9],[16,6,16,9],[11,0,11,4],[19,6,19,9],[13,6,13,9],[8,0,8,9],[33,6,33,9],[43,0,43,2],[29,6,29,7],[22,6,23,9],[24,6,24,7],[28,6,28,7],[38,6,38,8],[11,8,11,9],[11,6,11,7],[0,0,0,9],[1,0,1,9],[2,0,2,9],[3,0,3,9],[4,0,4,2],[4,8,4,9],[5,0,5,9]]}
["Biolink Ecological Consultants Pty Ltd PO Box 196 Uki NSW 2484 0266726966"]
[" Dept of Environment and Conservation PO Box 656 Merimbula NSW 2548 0264955008"]
["EUROBODALLA PILOT PLOTS KOALA SURVEY 2012"]
["REGULARISED GRID-BASED SPOT ASSESSMENT TECHNIQUE"]
["Site Number_MERR1_",null,null,"Recorder_Keith Joliffe_",null,null,null,"Time_1200_","Date_3/10/2012_"]
["Site Location_\"The Lagoon\" (Fergus Hood & Trish Gardiner) Araluen Rd south of Merricumbene_"]
["______________________________________________________",null,null,null,null,"Site Tenure_Private land surrounded by Deua NP_"]
["Easting_0765648_",null,null,"Northing_6038292_",null,null,"Datum_UTM 55_",null,"GPS Error_+/- 6m_"]
["Geology (Granitic, Metasediment or Bassalt?)_Metasediment_"]
["Soil Depth (Hardly Any, Some Depth or Deep Topsoil?)",null,null,null,null,null,"Some depth_possible lacustrine sediments"]
["Soil Type (Sandy, Sandy Loam or Loam?)",null,null,null,null,"Sandy loam alluvial",null,"Aspect: Old river bed_flat w. low side ridge"]
["Trees recorded clockwise on N bearing from Centre Tree",null,null,null,null,null,"Plot Radius_34 m_",null,"SAT Criteria  3"]
[null,"TSP","DBH","Koala","KFP",null,null,"1haveseenkoala","2haveseenpellets","3gridplot"]
[1,"Angflo",750,null,null,null,"Groundcover ease of searching"]
[2,"Evim",1030,null,null,null,"Moderate"]
[3,"Angflo",497]
[4,"Angflo",508,null,null,null,"Koala information"]
[5,"Eglo",520,null,null,null,"Pellet Age         Old     Mixed    Fresh"]
[6,"Eglo",480,null,null,null,"A/level______/_______=_______%",null,null,"ie pell/trees"]
[7,"Eglo",200,null,null,null,"Comments"]
[8,"Evim",510]
[9,"Angflo",400,null,null,null,"Information about other Fauna"]
[10,"Evim",1800,null,null,null,"Nature of Observation                                                P: Pellets, D: Digs, O: Observ, N: Nest, C: Call, M: Mound"]
[11,"Evim",750]
[12,"Eglo",190,null,null,null,"Wallaby P",null,"BT Possum P scratches"]
[13,"Evim",340,null,null,null,"EG Kangaroo P",null,"RT Possum P scratches"]
[14,"Evim",429,null,null,null,"LN Bandicoot",null,"Other: Goanna scratches;"]
[15,"Eglo",422,null,null,null,"LN Potoroo",null,"Large Antechinas scats;"]
[16,"Angflo",227,null,null,null,"Wombat D P",null,"Bandicoot digs adjacent"]
[17,"Evim","485 x2",null,null,null,"Rabbit",null,"to plot;"]
[18,"Eglo",150,null,null,null,"G.Glider",null,"Cicadas"]
[19,"Eglo",170,null,null,null,"No of  Bandi/Potoroo digs within 5m of CT"]
[20,"Eglo",416,null,null,null,"Unsure? -","Use","Comments"]
[21,"Eglo",330,null,null,null,"Team Members"]
[22,"Evim",290,null,null,null,"Sophie","Keith"]
[23,"Angflo",457,null,null,null,"Kahli"]
[24,"Angflo",720,null,null,null,"Daniel"]
[25,"Evim",1390,null,null,null,"Candace"]
[26,"Acas",170,null,null,null,"OTHER COMMENTS"]
[27,"Ecyp",730,null,null,null,"Old maps & historical reference "]
[28,"Eglo",260,null,null,null,"suggest past core koala habitat; potential"]
[29,"Angflo",701,null,null,null," translocation centre?"]
[30,"Ecyp",1100]
["OTHER COMMENTS"]
["E tere adjacent to plot; active fire record - thick wattle regrowth;"]
["veg-growing & grazing history, incl depression era",null,null,null,null,null,"Data Entry Information",null,null,"Date"]
["channels & mounds; camping huts & houses; serious",null,null,null,null,null,"Checked by"]
["pig damage; dingo & dog history; Burrawangs.",null,null,null,null,null,"Entered by"]

{"sheet":"(Cadgee1 (Liam) 11.8.2012)","index":19,"n_rows":48,"n_cols":10,"rows_kept":48,"cut":false,"hidden":false,"merged":[[11,8,11,9],[11,6,11,7],[0,0,0,9],[1,0,1,9],[2,0,2,9],[3,0,3,9],[4,0,4,2],[4,8,4,9],[5,0,5,9],[33,6,33,9],[43,0,43,2],[29,6,29,7],[22,6,23,9],[24,6,24,7],[28,6,28,7],[21,6,21,9],[17,6,17,9],[7,0,7,2],[6,5,6,9],[14,6,14,9],[16,6,16,9],[11,0,11,4],[19,6,19,9],[13,6,13,9],[8,0,8,9]]}
["Biolink Ecological Consultants Pty Ltd PO Box 196 Uki NSW 2484 0266726966"]
[" Dept of Environment and Conservation PO Box 656 Merimbula NSW 2548 0264955008"]
["EUROBODALLA PILOT PLOTS KOALA SURVEY 2012"]
["REGULARISED GRID-BASED SPOT ASSESSMENT TECHNIQUE"]
["Site Number_C 1 Transect_",null,null,"Recorder_Keith Joliffe_& Kahli Beissner",null,null,null,"Time_1500_& 1000","Date_11/8/2012_& 5/9/12"]
["Site Location_Margot & Richard Bruinsma, Cadgee, next to Cadgee (ex-Wattle Grove) Bridge, on Gulph_"]
["_Creek_& on Sth side of bridge at road",null,null,null,null,"Site Tenure_Private land, West of Dampier SF_"]
["Easting_0762578",null,null,"Northing_5996827",null,null,"Datum_UTM 55_",null,"GPS Error_+/- 9m_& +/- 6m"]
["Geology (Granitic, Metasediment or Bassalt?)_River flat, with steep rocky ridge opposite (granite?)_"]
["Soil Depth (Hardly Any, Some Depth or Deep Topsoil?)",null,null,null,null,null,"Seems pretty deep, black river soil_&_shallow"]
["Soil Type (Sandy, Sandy Loam or Loam?)",null,null,null,null,"Loam & sandy loam",null,"Aspect:","Flat; W side of creek_& slope to Nth"]
["Trees recorded clockwise on N bearing from Centre Tree",null,null,null,null,null,"Plot Radius_________",null,"SAT Criteria  1"]
[null,"TSP","DBH","Koala","KFP",null,null,"1haveseenkoala","2haveseenpellets","3gridplot"]
[1,"E elata",1090,null,"? TBC",null,"Groundcover ease of searching"]
[2,null,null,null,null,null,"Difficult_vine and kikuyu"]
[3]
[4,null,null,null,null,null,"Koala information"]
[5,null,null,null,null,null,"Pellet Age         Old     Mixed    Fresh"]
[6,null,null,null,null,null,"A/level______/_______=_______%",null,null,"ie pell/trees"]
[7,null,null,null,null,null,"Comments Very small pellets; need checking"]
[8]
[9,null,null,null,null,null,"Information about other Fauna"]
[10,null,null,null,null,null,"Nature of Observation                                                P: Pellets, D: Digs, O: Observ, N: Nest, C: Call, M: Mound"]
[11]
[12,null,null,null,null,null,"Wallaby S",null,"BT Possum"]
[13,null,null,null,null,null,"EG Kangaroo S",null,"RT Possum"]
[14,null,null,null,null,null,"LN Bandicoot",null,"YB Glider"]
[15,null,null,null,null,null,"LN Potoroo",null,"Lyrebird"]
[16,null,null,null,null,null,"Wombat D; P",null,"Bell minor"]
[17,null,null,null,null,null,"Rabbit",null,"Deer"]
[18,null,null,null,null,null,"G.Glider P???",null,"Other"]
[19,null,null,null,null,null,"No of  Bandi/Potoroo digs within 5m of CT"]
[20,null,null,null,null,null,"Unsure? -","Use","Comments"]
[21,null,null,null,null,null,"Team Members"]
[22,null,null,null,null,null,"Day 1: Keith,  John Cowan, Liam Jennings"]
[23,null,null,null,null,null,"Day 2: Add Rob, Kahli, Tracey, Sophie,"]
[24,null,null,null,null,null,"Daniel, Rhonda"]
[25]
[26,null,null,null,null,null,"Transect"]
[27,null,null,null,null,null,null,"Time","Eastings","Northings"]
[28,null,null,null,null,null,"Start"]
[29,null,null,null,null,null,"Finish"]
[30,null,null,null,null,null,"Pellet sites"]
["OTHER COMMENTS",null,null,null,null,null,"Pellet sites"]
["incl","Unsure TSP"]
["Lots of wattle by creekside.",null,null,null,null,null,"Data Entry Information",null,null,"Date"]
["Red deer have been seen often.",null,null,null,null,null,"Checked by"]
["Small pellets collected_species unsure_to be checked.",null,null,null,null,null,"Entered by"]

{"sheet":"(Cadgee2) 5.9.2012","index":20,"n_rows":48,"n_cols":10,"rows_kept":48,"cut":false,"hidden":false,"merged":[[21,6,21,9],[17,6,17,9],[7,0,7,2],[6,5,6,9],[14,6,14,9],[16,6,16,9],[11,0,11,4],[19,6,19,9],[13,6,13,9],[8,0,8,9],[33,6,33,9],[43,0,43,2],[29,6,29,7],[22,6,23,9],[24,6,24,7],[28,6,28,7],[11,8,11,9],[11,6,11,7],[0,0,0,9],[1,0,1,9],[2,0,2,9],[3,0,3,9],[4,0,4,2],[4,8,4,9],[5,0,5,9]]}
["Biolink Ecological Consultants Pty Ltd PO Box 196 Uki NSW 2484 0266726966"]
[" Dept of Environment and Conservation PO Box 656 Merimbula NSW 2548 0264955008"]
["EUROBODALLA PILOT PLOTS KOALA SURVEY 2012"]
["REGULARISED GRID-BASED SPOT ASSESSMENT TECHNIQUE"]
["Site Number_C2_",null,null,"Recorder_K. Beissner_",null,null,null,"Time_1000_","Date_5/9/2012_"]
["Site Location_Cadgee Bridge - South East of Gulph Creek_"]
["______________________________________________________",null,null,null,null,"Site Tenure_Private - M&R Bruinsma_"]
["Easting_0762554_",null,null,"Northing_5996627_",null,null,"Datum_UTM 55_",null,"GPS Error_+/- 6m_"]
["Geology (Granitic, Metasediment or Bassalt?)_Metasediment_"]
["Soil Depth (Hardly Any, Some Depth or Deep Topsoil?)",null,null,null,null,null,"Some Depth"]
["Soil Type (Sandy, Sandy Loam or Loam?)",null,null,null,null,"Loam",null,"Aspect:","Slopes down to North"]
["Trees recorded clockwise on N bearing from Centre Tree",null,null,null,null,null,"Plot Radius_21.7 m_",null,"SAT Criteria  1"]
[null,"TSP","DBH","Koala","KFP",null,null,"1haveseenkoala","2haveseenpellets","3gridplot"]
[1,"angflo","910 x3",null,null,null,"Groundcover ease of searching"]
[2,"Eela",210,null,null,null,"Easy"]
[3,"Amea",195]
[4,"Eela",420,null,null,null,"Koala information"]
[5,"Amea",230,null,null,null,"Pellet Age         Old (TBC)"]
[6,"Eela",680,null,null,null,"A/level_1_/_30_=_3.3_%",null,null,"ie pell/trees"]
[7,"Eela",350,null,null,null,"Comments SCATS TBC"]
[8,"Eela",350]
[9,"Eela",390,null,null,null,"Information about other Fauna"]
[10,"Eela",510,null,null,null,"Nature of Observation                                                P: Pellets, D: Digs, O: Observ, N: Nest, C: Call, M: Mound"]
[11,"Eela",420]
[12,"Eela",535,null,null,null,"Wallaby P",null,"BT Possum P"]
[13,"Eela",605,null,null,null,"EG Kangaroo",null,"RT Possum"]
[14,"Eela","1653 x5",null,null,null,"LN Bandicoot",null,"YB Glider"]
[15,"angflo","755 x3",null,null,null,"LN Potoroo",null,"Lyrebird"]
[16,"Eela","2325 x4",null,"KP (TBC)",null,"Wombat P D",null,"Bell minor"]
[17,"angflo",770,null,null,null,"Rabbit",null,"Deer"]
[18,"Emue",300,null,null,null,"G.Glider",null,"Other Bush Rat"]
[19,"Emue",185,null,null,null,"No of  Bandi/Potoroo digs within 5m of CT"]
[20,"Ebos",315,null,null,null,"Unsure? -","Use","Comments"]
[21,"Ebos","750 x3",null,null,null,"Team Members"]
[22,"Eela",775,null,null,null,"Rob","Kahli","Tracey","Sophie"]
[23,"Eela","1380 x4",null,null,null,"Keith","Daniel","John Cowan"]
[24,"Ebos",320,null,null,null,"Liam","Rhonda"]
[25,"Eela","2050 x4"]
[26,"Eela",525,null,null,null,"Transect"]
[27,"Eela",410,null,null,null,null,"Time","Eastings","Northings"]
[28,"Eela",625,null,null,null,"Start"]
[29,"Ebos",290,null,null,null,"Finish"]
[30,"Eela",800,null,null,null,"Pellet sites"]
["OTHER COMMENTS",null,null,null,null,null,"Pellet sites"]
["incl","Unsure TSP"]
["Old Mine Shafts",null,null,null,null,null,"Data Entry Information",null,null,"Date"]
["Tree 16 (scat TBC) E 0762546 N 5996604 Error +/- 10m",null,null,null,null,null,"Checked by"]
[null,null,null,null,null,null,"Entered by"]

{"sheet":"(Cadgee3) 5.9.2012","index":21,"n_rows":48,"n_cols":10,"rows_kept":48,"cut":false,"hidden":false,"merged":[[21,6,21,9],[17,6,17,9],[7,0,7,2],[6,5,6,9],[14,6,14,9],[16,6,16,9],[11,0,11,4],[19,6,19,9],[13,6,13,9],[8,0,8,9],[33,6,33,9],[43,0,43,2],[29,6,29,7],[22,6,23,9],[24,6,24,7],[28,6,28,7],[11,8,11,9],[11,6,11,7],[0,0,0,9],[1,0,1,9],[2,0,2,9],[3,0,3,9],[4,0,4,2],[4,8,4,9],[5,0,5,9]]}
["Biolink Ecological Consultants Pty Ltd PO Box 196 Uki NSW 2484 0266726966"]
[" Dept of Environment and Conservation PO Box 656 Merimbula NSW 2548 0264955008"]
["EUROBODALLA PILOT PLOTS KOALA SURVEY 2012"]
["REGULARISED GRID-BASED SPOT ASSESSMENT TECHNIQUE"]
["Site Number_C3_",null,null,"Recorder_K. Beissner_",null,null,null,"Time_1200_","Date_5/9/2012_"]
["Site Location_Gulph Creek South side, East of Cadgee Bridge_"]
["______________________________________________________",null,null,null,null,"Site Tenure_Private _ R&M Bruinsma_"]
["Easting_0762616_",null,null,"Northing_5996718_",null,null,"Datum_UTM 55_",null,"GPS Error_+/- 21m_"]
["Geology (Granitic, Metasediment or Bassalt?)_Metasediment_"]
["Soil Depth (Hardly Any, Some Depth or Deep Topsoil?)",null,null,null,null,null,"Hardly any"]
["Soil Type (Sandy, Sandy Loam or Loam?)",null,null,null,null,"Sandy loam",null,"Aspect: greater than 20 deg slope to Nth"]
["Trees recorded clockwise on N bearing from Centre Tree",null,null,null,null,null,"Plot Radius_20.4m_",null,"SAT Criteria  1"]
[null,"TSP","DBH","Koala","KFP",null,null,"1haveseenkoala","2haveseenpellets","3gridplot"]
[1,"angflo",633,null,null,null,"Groundcover ease of searching"]
[2,"Alit",290,null,null,null,"Difficult"]
[3,"angflo",540]
[4,"angflo",304,null,null,null,"Koala information"]
[5,"Ebos",180,null,null,null,"Pellet Age         Old     Mixed    Fresh"]
[6,"angflo",390,null,null,null,"A/level______/_______=_______%",null,null,"ie pell/trees"]
[7,"angflo",350,null,null,null,"Comments"]
[8,"Ebos",350]
[9,"Alit",220,null,null,null,"Information about other Fauna"]
[10,"angflo",410,null,null,null,"Nature of Observation                                                P: Pellets, D: Digs, O: Observ, N: Nest, C: Call, M: Mound"]
[11,"Ebos",320]
[12,"Eela",190,null,null,null,"Wallaby P",null,"BT Possum"]
[13,"Ebos",460,null,null,null,"EG Kangaroo",null,"RT Possum"]
[14,"angflo",210,null,null,null,"LN Bandicoot",null,"YB Glider"]
[15,"Eela",740,null,null,null,"LN Potoroo",null,"Lyrebird"]
[16,"angflo",550,null,null,null,"Wombat P",null,"Bell minor"]
[17,"Ebos",340,null,null,null,"Rabbit",null,"Deer"]
[18,"Eela",170,null,null,null,"G.Glider",null,"Other"]
[19,"angflo",210,null,null,null,"No of  Bandi/Potoroo digs within 5m of CT"]
[20,"Eela",740,null,null,null,"Unsure? -","Use","Comments"]
[21,"Eela",181,null,null,null,"Team Members"]
[22,"Eela",260,null,null,null,"Rob","Kahli","Tracey","Sophie"]
[23,"Eela",590,null,null,null,"Keith","Daniel","John Cowan"]
[24,"Eela",260,null,null,null,"Liam","Rhonda"]
[25,"Eela",425]
[26,"Eela",147,null,null,null,"Transect"]
[27,"Eela",810,null,null,null,null,"Time","Eastings","Northings"]
[28,"Cedar",370,null,null,null,"Start"]
[29,"Eela",550,null,null,null,"Finish"]
[30,"angflo",340,null,null,null,"Pellet sites"]
["OTHER COMMENTS",null,null,null,null,null,"Pellet sites"]
["incl","Unsure TSP"]
[null,null,null,null,null,null,"Data Entry Information",null,null,"Date"]
[null,null,null,null,null,null,"Checked by"]
[null,null,null,null,null,null,"Entered by"]

{"sheet":"(EL1) 24.10.2012","index":22,"n_rows":48,"n_cols":10,"rows_kept":48,"cut":false,"hidden":false,"merged":[[11,8,11,9],[11,6,11,7],[0,0,0,9],[1,0,1,9],[2,0,2,9],[3,0,3,9],[4,0,4,2],[4,8,4,9],[5,0,5,9],[33,6,33,9],[43,0,43,2],[29,6,29,7],[22,6,23,9],[24,6,24,7],[28,6,28,7],[21,6,21,9],[17,6,17,9],[7,0,7,2],[6,5,6,9],[14,6,14,9],[16,6,16,9],[11,0,11,4],[19,6,19,9],[13,6,13,9],[8,0,8,9]]}
["Biolink Ecological Consultants Pty Ltd PO Box 196 Uki NSW 2484 0266726966"]
[" Dept of Environment and Conservation PO Box 656 Merimbula NSW 2548 0264955008"]
["EUROBODALLA PILOT PLOTS KOALA SURVEY 2012"]
["REGULARISED GRID-BASED SPOT ASSESSMENT TECHNIQUE"]
["Site Number_EL1_",null,null,"Recorder_Keith Joliffe_",null,null,null,"Time_1030_","Date_24/10/2012_"]
["Site Location_#551 Donovan Creek Road, East Lynne (Mark Fleming & Cathy Thomas)_"]
["_above Old Store Ck, adj to Boyne State Forest Cmpt 832_",null,null,null,null,"Site Tenure_Private Land_"]
["Easting_0248136_",null,null,"Northing_6061754_",null,null,"Datum_UTM 55_",null,"GPS Error_+/- 7m_"]
["Geology (Granitic, Metasediment or Bassalt?)_Metasediment_"]
["Soil Depth (Hardly Any, Some Depth or Deep Topsoil?)",null,null,null,null,null,"Some depth"]
["Soil Type (Sandy, Sandy Loam or Loam?)",null,null,null,null,"Sandy loam",null,"Aspect: Slopes down to South (gully)"]
["Trees recorded clockwise on N bearing from Centre Tree",null,null,null,null,null,"Plot Radius_16.8 m_",null,"SAT Criteria  1 "]
[null,"TSP","DBH","Koala","KFP",null,"1haveseenkoala",null,"(Seen Yr 2000)"]
[1,"Epip",1020,null,null,null,"Groundcover ease of searching"]
[2,"Eglo",190,null,null,null,"Difficult"]
[3,"Eglo",610]
[4,"Eglo",380,null,null,null,"Koala information"]
[5,"Eglo",320,null,null,null,"Pellet Age         Old     Mixed    Fresh"]
[6,"EoblxEgloxEpip",270,null,null,null,"A/level______/_______=_______%",null,null,"ie pell/trees"]
[7,"EoblxEgloxEpip",760,null,null,null,"Comments"]
[8,"EoblxEgloxEpip",225]
[9,"Eglo",175,null,null,null,"Information about other Fauna"]
[10,"Epip",1175,"G Glider scat",null,null,"Nature of Observation                                                P: Pellets, D: Digs, O: Observ, N: Nest, C: Call, M: Mound"]
[11,"Epip",440]
[12,"Eglo",185,null,null,null,"Wallaby P",null,"BT Possum P"]
[13,"Ecyp",220,null,null,null,"EG Kangaroo",null,"RT Possum P"]
[14,"Eglo",230,null,null,null,"LN Bandicoot",null,"YB Glider"]
[15,"EoblxEgloxEpip",380,"Mark says Messmate",null,null,"LN Potoroo",null,"Lyrebird"]
[16,"EoblxEgloxEpip",460,"but are they",null,null,"Wombat",null,"Bell minor"]
[17,"EoblxEgloxEpip",561,"intergrades?",null,null,"Rabbit",null,"Deer"]
[18,"EoblxEgloxEpip",700,null,null,null,"G.Glider P (Tree #10)",null,"Other Possum scratches"]
[19,"Eglo",200,null,null,null,"No of  Bandi/Potoroo digs within 5m of CT"]
[20,"Ecyp",320,null,null,null,"Motion sensing cameras in place for pre/post fire study"]
[21,"Epip",560,null,null,null,"Team Members"]
[22,"EoblxEgloxEpip",290,null,null,null,"Kahli","Sophie","Bob","Keith"]
[23,"EoblxEgloxEpip",260,"Camera tree"]
[24,"Eglo",318]
[25,"ECgum",410,"Red Bloodwood"]
[26,"ECgum",200,"Red Bloodwood",null,null,"Transect"]
[27,"ECgum",380,"Red Bloodwood",null,null,null,"Time","Eastings","Northings"]
[28,"ECgum",440,"Red Bloodwood",null,null,"Start"]
[29,"Ecyp",250,null,null,null,"Finish"]
[30,"Eglo",620,null,null,null,"Pellet sites"]
["OTHER COMMENTS",null,null,null,null,null,"Pellet sites"]
["Large Ecyps & smaller EsalxEbots adjacent to plot."]
["Koala seen in Yr 2000. Greater Glider since. Kangaroos known.",null,null,null,null,null,"Data Entry Information",null,null,"Date"]
["Fire history. Active logging on road in.",null,null,null,null,null,"Checked by"]
["Difficult euc ID; fruits & barks not precise; intergrading?",null,null,null,null,null,"Entered by"]

{"sheet":"(EL2) 24.10.2012","index":23,"n_rows":48,"n_cols":10,"rows_kept":48,"cut":false,"hidden":false,"merged":[[11,8,11,9],[11,6,11,7],[0,0,0,9],[1,0,1,9],[2,0,2,9],[3,0,3,9],[4,0,4,2],[4,8,4,9],[5,0,5,9],[33,6,33,9],[43,0,43,2],[29,6,29,7],[22,6,23,9],[24,6,24,7],[28,6,28,7],[21,6,21,9],[17,6,17,9],[7,0,7,2],[6,5,6,9],[14,6,14,9],[16,6,16,9],[11,0,11,4],[19,6,19,9],[13,6,13,9],[8,0,8,9]]}
["Biolink Ecological Consultants Pty Ltd PO Box 196 Uki NSW 2484 0266726966"]
[" Dept of Environment and Conservation PO Box 656 Merimbula NSW 2548 0264955008"]
["EUROBODALLA PILOT PLOTS KOALA SURVEY 2012"]
["REGULARISED GRID-BASED SPOT ASSESSMENT TECHNIQUE"]
["Site Number_EL2_",null,null,"Recorder_Keith Joliffe_",null,null,null,"Time_1330_","Date_24/10/2012_"]
["Site Location_Old Store Road, East Lynne, off Donovan Rd, opposite \"Kinkawooka\", directly adjacent to_"]
["_Boyne State Forest logged coup Yr 2001 or 2002_",null,null,null,null,"Site Tenure_Private land, adj to Boyne SF Cmpt 832_"]
["Easting_0248623_",null,null,"Northing_6061467_",null,null,"Datum_UTM 55_",null,"GPS Error_+/- 6m_"]
["Geology (Granitic, Metasediment or Bassalt?)_Metasediment_"]
["Soil Depth (Hardly Any, Some Depth or Deep Topsoil?)",null,null,null,null,null,"Some depth"]
["Soil Type (Sandy, Sandy Loam or Loam?)",null,null,null,null,"Sandy loam",null,"Aspect: Slight slope down to North"]
["Trees recorded clockwise on N bearing from Centre Tree",null,null,null,null,null,"Plot Radius_28.6 m_",null,"SAT Criteria  3"]
[null,"TSP","DBH","Koala","KFP",null,null,"1haveseenkoala","2haveseenpellets","3gridplot"]
[1,"ECgum",780,null,null,null,"Groundcover ease of searching"]
[2,"ECgum",590,null,null,null,"Easy"]
[3,"ECgum",330]
[4,"ECgum",355,null,null,null,"Koala information"]
[5,"ECgum",400,null,null,null,"Pellet Age         Old     Mixed    Fresh"]
[6,"ECgum",360,null,null,null,"A/level______/_______=_______%",null,null,"ie pell/trees"]
[7,"Ecyp",790,null,null,null,"Comments"]
[8,"Eglo",450]
[9,"ECgum",537,null,null,null,"Information about other Fauna"]
[10,"Eglo",365,null,null,null,"Nature of Observation                                                P: Pellets, D: Digs, O: Observ, N: Nest, C: Call, M: Mound"]
[11,"Cmac",695]
[12,"ECgum",610,null,null,null,"Wallaby P",null,"BT Possum"]
[13,"Eglo",210,null,null,null,"EG Kangaroo P",null,"RT Possum"]
[14,"Eglo",302,null,null,null,"LN Bandicoot",null,"YB Glider"]
[15,"Eglo",200,null,null,null,"LN Potoroo",null,"Lyrebird"]
[16,"ECgum",340,null,null,null,"Wombat",null,"Bell minor"]
[17,"Eglo",190,null,null,null,"Rabbit",null,"Deer"]
[18,"Eglo","1105 x2",null,null,null,"G.Glider",null,"Other"]
[19,"Cmac",480,null,null,null,"No of  Bandi/Potoroo digs within 5m of CT"]
[20,"Eglo",320,null,null,null,"Goanna seen nearby; scratches on plot tree."]
[21,"Eglo",480,null,null,null,"Team Members"]
[22,"Eglo",661,null,null,null,"Kahli","Sophie","Bob","Keith"]
[23,"Eglo",440]
[24,"Epip",400,"Intergrade?"]
[25,"Epip",220]
[26,"Eglo",440,null,null,null,"Transect"]
[27,"ECgum",760,null,null,null,null,"Time","Eastings","Northings"]
[28,"ECgum",450,null,null,null,"Start"]
[29,"Epip",289,null,null,null,"Finish"]
[30,"ECgum",300,null,null,null,"Pellet sites"]
["OTHER COMMENTS",null,null,null,null,null,"Pellet sites"]
[null,"Strong fire history."]
["Disturbance next door - logged coup.",null,null,null,null,null,"Data Entry Information",null,null,"Date"]
["Small disused farm dam adjacent to plot.",null,null,null,null,null,"Checked by"]
["Difficult euc ID - ECgum; Eobl; Epip; intergrades?",null,null,null,null,null,"Entered by"]